Workbook

Sheet Anleitung
A1: Futtermittelrechner für Geflügel | G1: Version 3.0
A2: ©Sebastian Hilbert
A4: Anleitung
A6: Registerkarte "Bedarf"
A7: In dieser Registerkarte stehen die Bedarfswerte für verschiedenes Geflügel. Da nicht alle Werte vollständig sind,
A8: sollten Sie als erstes die Badarfswerte für Ihr Futter in die eigefärbten Zellen eingeben. Wichtig ist dabei, dass Sie
A9: für alle Inhaltsstoffe, v. a. für die Aminosäuren Threonin und Tryptophan, eine Spanne einkalkulieren, damit der
A10: Solver auch eine Lösung finden kann.
A12: Registerkarte "Futterwerttabelle"
A13: Hier kann der Preis für jedes Futtermittel, sowie drei weitere Futtermittel eingegeben werden.
A14: Wenn Ihnen die Inhaltsstoffe für Ihr vorligendes Futtermittel bekannt ist, sollten Sie die Werte in der Tabelle ändern,
A15: denn die Angaben sind lediglich Durschnittswerte. Die Inhaltsstoffe sind in der Regel bei jeder Bezugspartie anders.
A17: Registerkarte "Rationsberechnung"
A18: Alle nötigen Angaben können der farbigen Tabelle entnommen werden. Wenn Sie eine manuelle Eingabe des Prozentsatzes
A19: des jeweiligen Futtermittels wünschen, empfehle ich Ihnen die Eintragung in der Spalte C vorzunehmen, damit die Pfeile
A20: für die Änderung weiterhin funktionieren.
A22: Damit der Butten "Kosten optimieren" funktioniert, müssen Makros aktiviert sein. Sollte der Butten seine Funktion verweigern
A23: können Sie manuell auf den vorprogrammierten "Solver" zugreifen. Wie das funktioniert entnehmen Sie bitte der Excel-Hilfe.
A27: Bei Fragen oder Problemen bitte unter
A28: info@fluegelvieh.de
A29: melden.
A30: Über Verbesserungsvorschläge wäre ich ebenfalls sehr erfreut.
A34: Wichtig:
A35: Ich übernehme keine Haftung für die Richtigkeit der Daten in dieser Datei.
A36: Inhaltsstoffe von Futtermitteln können je nach Jahr und Ort verschieden sein. | R36: 100
AD44: 6 | AQ44: 6

Sheet Rationsberechnung
A1: Rationsberechnung
A2: Bedarfswerte für: | D2: 15
A3: Futtermittel | D3: Mindestanteil [%] | E3: Höchstanteil [%] | F3: Empfohlener Höchstanteil | H3: Kosten je kg | J3: Inhaltsstoffe bei 88% TS | M3: Orientierungs- werte
D4: < bitte eingeben > | F4: (Orientierungswerte) | J4: Rohnährstoffe | K4: Energie ME | L4: =E82/D81*880 ->  | M4: =(E84+E85)/2 -> 10.9 | N4: =IF(L4<E$84,"!!!",IF(L4>E$85,"!!!","OK")) -> 
A5: 102 | B5: =C5/10 -> 0 | C5: 0 | D5: 0 | E5: 100 | F5: =HLOOKUP(Futterwertabelle!T$2,Futterwertabelle!T$2:T$126,($A5+1),FALSE) -> o.B. | G5: =IF(HLOOKUP(Futterwertabelle!U$2,Futterwertabelle!U$2:U$126,($A5+1),FALSE)=0," ",HLOOKUP(Futterwertabelle!U$2,Futterwertabelle!U$2:U$126,($A5+1))) -> )* 30% Küken | H5: =(HLOOKUP(Futterwertabelle!S$2,Futterwertabelle!S$2:S$126,($A5+1),FALSE)) -> 0.21 | K5: Rohasche | L5: =F$82/$D$81*880 -> 
A6: 1 | B6: =C6/10 -> 0 | C6: 0 | D6: 0 | E6: 100 | F6: =HLOOKUP(Futterwertabelle!T$2,Futterwertabelle!T$2:T$126,($A6+1),FALSE) -> 0 | G6: =IF(HLOOKUP(Futterwertabelle!U$2,Futterwertabelle!U$2:U$126,($A6+1),FALSE)=0," ",HLOOKUP(Futterwertabelle!U$2,Futterwertabelle!U$2:U$126,($A6+1))) ->  | H6: =(HLOOKUP(Futterwertabelle!S$2,Futterwertabelle!S$2:S$126,($A6+1),FALSE)) -> 0 | K6: Rohprotein | L6: =J$82/$D$81*880 ->  | M6: =(J84+J85)/2 -> 0.1575 | N6: =IF(L6<J$84,"!!!",IF(L6>J$85,"!!!","OK")) -> 
A7: 1 | B7: 0 | C7: 0 | D7: 0 | E7: 100 | F7: =HLOOKUP(Futterwertabelle!T$2,Futterwertabelle!T$2:T$126,($A7+1),FALSE) -> 0 | G7: =IF(HLOOKUP(Futterwertabelle!U$2,Futterwertabelle!U$2:U$126,($A7+1),FALSE)=0," ",HLOOKUP(Futterwertabelle!U$2,Futterwertabelle!U$2:U$126,($A7+1))) ->  | H7: =(HLOOKUP(Futterwertabelle!S$2,Futterwertabelle!S$2:S$126,($A7+1),FALSE)) -> 0 | K7: Rohfett | L7: =K$82/$D$81*880 -> 
A8: 1 | B8: 0 | C8: 0 | D8: 0 | E8: 100 | F8: =HLOOKUP(Futterwertabelle!T$2,Futterwertabelle!T$2:T$126,($A8+1),FALSE) -> 0 | G8: =IF(HLOOKUP(Futterwertabelle!U$2,Futterwertabelle!U$2:U$126,($A8+1),FALSE)=0," ",HLOOKUP(Futterwertabelle!U$2,Futterwertabelle!U$2:U$126,($A8+1))) ->  | H8: =(HLOOKUP(Futterwertabelle!S$2,Futterwertabelle!S$2:S$126,($A8+1),FALSE)) -> 0 | K8: Rohfaser | L8: =L$82/$D$81*880 -> 
A9: 1 | B9: =C9/10 -> 0 | C9: 0 | D9: 0 | E9: 100 | F9: =HLOOKUP(Futterwertabelle!T$2,Futterwertabelle!T$2:T$126,($A9+1),FALSE) -> 0 | G9: =IF(HLOOKUP(Futterwertabelle!U$2,Futterwertabelle!U$2:U$126,($A9+1),FALSE)=0," ",HLOOKUP(Futterwertabelle!U$2,Futterwertabelle!U$2:U$126,($A9+1))) ->  | H9: =(HLOOKUP(Futterwertabelle!S$2,Futterwertabelle!S$2:S$126,($A9+1),FALSE)) -> 0 | J9: Mineralstoffe | K9: Calcium | L9: =M$82/$D$81*880 ->  | M9: =(M84+M85)/2 -> 0.0325 | N9: =IF(L9<M$84,"!!!",IF(L9>M$85,"!!!","OK")) -> 
A10: 1 | B10: 0 | C10: 0 | D10: 0 | E10: 100 | F10: =HLOOKUP(Futterwertabelle!T$2,Futterwertabelle!T$2:T$126,($A10+1),FALSE) -> 0 | G10: =IF(HLOOKUP(Futterwertabelle!U$2,Futterwertabelle!U$2:U$126,($A10+1),FALSE)=0," ",HLOOKUP(Futterwertabelle!U$2,Futterwertabelle!U$2:U$126,($A10+1))) ->  | H10: =(HLOOKUP(Futterwertabelle!S$2,Futterwertabelle!S$2:S$126,($A10+1),FALSE)) -> 0 | K10: Phosphor | L10: =N$82/$D$81*880 ->  | M10: =(N84+N85)/2 -> 0.0065 | N10: =IF(L10<N$84,"!!!",IF(L10>N$85,"!!!","OK")) -> 
A11: 1 | B11: 0 | C11: 0 | D11: 0 | E11: 100 | F11: =HLOOKUP(Futterwertabelle!T$2,Futterwertabelle!T$2:T$126,($A11+1),FALSE) -> 0 | G11: =IF(HLOOKUP(Futterwertabelle!U$2,Futterwertabelle!U$2:U$126,($A11+1),FALSE)=0," ",HLOOKUP(Futterwertabelle!U$2,Futterwertabelle!U$2:U$126,($A11+1))) ->  | H11: =(HLOOKUP(Futterwertabelle!S$2,Futterwertabelle!S$2:S$126,($A11+1),FALSE)) -> 0 | K11: Natrium | L11: =O$82/$D$81*880 ->  | M11: =(O84+O85)/2 -> 0.00185 | N11: =IF(L11<O$84,"!!!",IF(L11>O$85,"!!!","OK")) -> 
A12: 1 | B12: 0 | C12: 0 | D12: 0 | E12: 100 | F12: =HLOOKUP(Futterwertabelle!T$2,Futterwertabelle!T$2:T$126,($A12+1),FALSE) -> 0 | G12: =IF(HLOOKUP(Futterwertabelle!U$2,Futterwertabelle!U$2:U$126,($A12+1),FALSE)=0," ",HLOOKUP(Futterwertabelle!U$2,Futterwertabelle!U$2:U$126,($A12+1))) ->  | H12: =(HLOOKUP(Futterwertabelle!S$2,Futterwertabelle!S$2:S$126,($A12+1),FALSE)) -> 0 | J12: Aminosäuren | K12: Methionin | L12: =P$82/$D$81*880 ->  | M12: =P84 -> 0.0032 | N12: =IF(L12<P$84,"!!!",IF(L12>P$85,"!!!","OK")) -> 
A13: 1 | B13: 0 | C13: 0 | D13: 0 | E13: 100 | F13: =HLOOKUP(Futterwertabelle!T$2,Futterwertabelle!T$2:T$126,($A13+1),FALSE) -> 0 | G13: =IF(HLOOKUP(Futterwertabelle!U$2,Futterwertabelle!U$2:U$126,($A13+1),FALSE)=0," ",HLOOKUP(Futterwertabelle!U$2,Futterwertabelle!U$2:U$126,($A13+1))) ->  | H13: =(HLOOKUP(Futterwertabelle!S$2,Futterwertabelle!S$2:S$126,($A13+1),FALSE)) -> 0 | K13: Met+Cys | L13: =Q$82/$D$81*880 ->  | M13: =Q84 -> 0.006 | N13: =IF(L13<Q$84,"!!!",IF(L13>Q$85,"!!!","OK")) -> 
A14: 1 | B14: 0 | C14: 0 | D14: 0 | E14: 100 | F14: =HLOOKUP(Futterwertabelle!T$2,Futterwertabelle!T$2:T$126,($A14+1),FALSE) -> 0 | G14: =IF(HLOOKUP(Futterwertabelle!U$2,Futterwertabelle!U$2:U$126,($A14+1),FALSE)=0," ",HLOOKUP(Futterwertabelle!U$2,Futterwertabelle!U$2:U$126,($A14+1))) ->  | H14: =(HLOOKUP(Futterwertabelle!S$2,Futterwertabelle!S$2:S$126,($A14+1),FALSE)) -> 0 | K14: Lysin | L14: =R$82/$D$81*880 ->  | M14: =R84 -> 0.0065 | N14: =IF(L14<R$84,"!!!",IF(L14>R$85,"!!!","OK")) -> 
A15: 1 | B15: 0 | C15: 0 | D15: 0 | E15: 100 | F15: =HLOOKUP(Futterwertabelle!T$2,Futterwertabelle!T$2:T$126,($A15+1),FALSE) -> 0 | G15: =IF(HLOOKUP(Futterwertabelle!U$2,Futterwertabelle!U$2:U$126,($A15+1),FALSE)=0," ",HLOOKUP(Futterwertabelle!U$2,Futterwertabelle!U$2:U$126,($A15+1))) ->  | H15: =(HLOOKUP(Futterwertabelle!S$2,Futterwertabelle!S$2:S$126,($A15+1),FALSE)) -> 0 | K15: Thr | L15: =S$82/$D$81*880 ->  | M15: =S84 -> 0.0043 | N15: =IF(L15<S$84,"!!!",IF(L15>S$85,"!!!","OK")) -> 
A16: 1 | B16: 0 | C16: 0 | D16: 0 | E16: 100 | F16: =HLOOKUP(Futterwertabelle!T$2,Futterwertabelle!T$2:T$126,($A16+1),FALSE) -> 0 | G16: =IF(HLOOKUP(Futterwertabelle!U$2,Futterwertabelle!U$2:U$126,($A16+1),FALSE)=0," ",HLOOKUP(Futterwertabelle!U$2,Futterwertabelle!U$2:U$126,($A16+1))) ->  | H16: =(HLOOKUP(Futterwertabelle!S$2,Futterwertabelle!S$2:S$126,($A16+1),FALSE)) -> 0 | K16: Try | L16: =T$82/$D$81*880 ->  | M16: =T84 -> 0.0014 | N16: =IF(L16<T$84,"!!!",IF(L16>T$85,"!!!","OK")) -> 
A17: 1 | B17: 0 | C17: 0 | D17: 0 | E17: 100 | F17: =HLOOKUP(Futterwertabelle!T$2,Futterwertabelle!T$2:T$126,($A17+1),FALSE) -> 0 | G17: =IF(HLOOKUP(Futterwertabelle!U$2,Futterwertabelle!U$2:U$126,($A17+1),FALSE)=0," ",HLOOKUP(Futterwertabelle!U$2,Futterwertabelle!U$2:U$126,($A17+1))) ->  | H17: =(HLOOKUP(Futterwertabelle!S$2,Futterwertabelle!S$2:S$126,($A17+1),FALSE)) -> 0 | J17: Vitamine | K17: Vitamin A | L17: =U82/D81*880 ->  | M17: =(U84+U85)/2 -> 17800 | N17: =IF(L17<U$84,"!!!",IF(L17>U$85,"!!!","OK")) -> 
A18: 1 | B18: 4.882812427e-05 | C18: 0.0004882812427 | D18: 0 | E18: 100 | F18: =HLOOKUP(Futterwertabelle!T$2,Futterwertabelle!T$2:T$126,($A18+1),FALSE) -> 0 | G18: =IF(HLOOKUP(Futterwertabelle!U$2,Futterwertabelle!U$2:U$126,($A18+1),FALSE)=0," ",HLOOKUP(Futterwertabelle!U$2,Futterwertabelle!U$2:U$126,($A18+1))) ->  | H18: =(HLOOKUP(Futterwertabelle!S$2,Futterwertabelle!S$2:S$126,($A18+1),FALSE)) -> 0 | K18: Vitamin D3 | L18: =V82/D81*880 ->  | M18: =(V84+V85)/2 -> 2600 | N18: =IF(L18<V$84,"!!!",IF(L18>V$85,"!!!","OK")) -> 
A19: 1 | B19: 0 | C19: 0 | D19: 0 | E19: 100 | F19: =HLOOKUP(Futterwertabelle!T$2,Futterwertabelle!T$2:T$126,($A19+1),FALSE) -> 0 | G19: =IF(HLOOKUP(Futterwertabelle!U$2,Futterwertabelle!U$2:U$126,($A19+1),FALSE)=0," ",HLOOKUP(Futterwertabelle!U$2,Futterwertabelle!U$2:U$126,($A19+1))) ->  | H19: =(HLOOKUP(Futterwertabelle!S$2,Futterwertabelle!S$2:S$126,($A19+1),FALSE)) -> 0 | K19: Vitamin E | L19: =W82/D81*880 ->  | M19: =(W84+W85)/2 -> 80 | N19: =IF(L19<W$84,"!!!",IF(L19>W$85,"!!!","OK")) -> 
A20: 1 | B20: 0.03974485173 | C20: 0.3974485173 | D20: 0 | E20: 100 | F20: =HLOOKUP(Futterwertabelle!T$2,Futterwertabelle!T$2:T$126,($A20+1),FALSE) -> 0 | G20: =IF(HLOOKUP(Futterwertabelle!U$2,Futterwertabelle!U$2:U$126,($A20+1),FALSE)=0," ",HLOOKUP(Futterwertabelle!U$2,Futterwertabelle!U$2:U$126,($A20+1))) ->  | H20: =(HLOOKUP(Futterwertabelle!S$2,Futterwertabelle!S$2:S$126,($A20+1),FALSE)) -> 0
A21: 1 | B21: =C21/10 -> 3.406193509e-05 | C21: 0.0003406193509 | D21: 0 | E21: 100 | F21: =HLOOKUP(Futterwertabelle!T$2,Futterwertabelle!T$2:T$126,($A21+1),FALSE) -> 0 | G21: =IF(HLOOKUP(Futterwertabelle!U$2,Futterwertabelle!U$2:U$126,($A21+1),FALSE)=0," ",HLOOKUP(Futterwertabelle!U$2,Futterwertabelle!U$2:U$126,($A21+1))) ->  | H21: =(HLOOKUP(Futterwertabelle!S$2,Futterwertabelle!S$2:S$126,($A21+1),FALSE)) -> 0
A22: 1 | B22: 0.1022073063 | C22: 1.022073063 | D22: 0 | E22: 100 | F22: =HLOOKUP(Futterwertabelle!T$2,Futterwertabelle!T$2:T$126,($A22+1),FALSE) -> 0 | G22: =IF(HLOOKUP(Futterwertabelle!U$2,Futterwertabelle!U$2:U$126,($A22+1),FALSE)=0," ",HLOOKUP(Futterwertabelle!U$2,Futterwertabelle!U$2:U$126,($A22+1))) ->  | H22: =(HLOOKUP(Futterwertabelle!S$2,Futterwertabelle!S$2:S$126,($A22+1),FALSE)) -> 0 | J22: Kosten je 50 kg: | M22: =X82*50 -> 
A23: Summe: | B23: =SUM(B35:B52) -> 0 | C23: =IF(ROUND(B23,1)=100,1,0) -> 0
B35: =IF(D61=0,0,B5) -> 0 | D35: =IF($B5=0,0,D61*$B5) -> 0 | E35: 0 | F35: 0 | J35: =IF($B5=0,0,J61*$B5) -> 0 | K35: 0 | L35: 0 | M35: 0 | N35: 0 | O35: 0 | P35: 0 | Q35: 0 | R35: 0 | S35: 0 | T35: 0 | U35: 0 | V35: 0 | W35: 0 | X35: 0
B36: 0 | D36: 0 | E36: 0 | F36: 0 | J36: =IF($B6=0,0,J62*$B6) -> 0 | K36: 0 | L36: 0 | M36: 0 | N36: 0 | O36: 0 | P36: 0 | Q36: 0 | R36: 0 | S36: 0 | T36: 0 | U36: 0 | V36: 0 | W36: 0 | X36: 0
B37: 0 | D37: 0 | E37: 0 | F37: 0 | J37: =IF($B7=0,0,J63*$B7) -> 0 | K37: 0 | L37: 0 | M37: 0 | N37: 0 | O37: 0 | P37: 0 | Q37: 0 | R37: 0 | S37: 0 | T37: 0 | U37: 0 | V37: 0 | W37: 0 | X37: 0
B38: 0 | D38: 0 | E38: 0 | F38: 0 | J38: =IF($B8=0,0,J64*$B8) -> 0 | K38: 0 | L38: 0 | M38: 0 | N38: 0 | O38: 0 | P38: 0 | Q38: 0 | R38: 0 | S38: 0 | T38: 0 | U38: 0 | V38: 0 | W38: 0 | X38: 0
B39: 0 | D39: 0 | E39: 0 | F39: 0 | J39: =IF($B9=0,0,J65*$B9) -> 0 | K39: 0 | L39: 0 | M39: 0 | N39: 0 | O39: 0 | P39: 0 | Q39: 0 | R39: 0 | S39: 0 | T39: 0 | U39: 0 | V39: 0 | W39: 0 | X39: 0
B40: 0 | D40: 0 | E40: 0 | F40: 0 | J40: =IF($B10=0,0,J66*$B10) -> 0 | K40: 0 | L40: 0 | M40: 0 | N40: 0 | O40: 0 | P40: 0 | Q40: 0 | R40: 0 | S40: 0 | T40: 0 | U40: 0 | V40: 0 | W40: 0 | X40: 0
B41: 0 | D41: 0 | E41: 0 | F41: 0 | J41: =IF($B11=0,0,J67*$B11) -> 0 | K41: 0 | L41: 0 | M41: 0 | N41: 0 | O41: 0 | P41: 0 | Q41: 0 | R41: 0 | S41: 0 | T41: 0 | U41: 0 | V41: 0 | W41: 0 | X41: 0
B42: 0 | D42: 0 | E42: 0 | F42: 0 | J42: =IF($B12=0,0,J68*$B12) -> 0 | K42: 0 | L42: 0 | M42: 0 | N42: 0 | O42: 0 | P42: 0 | Q42: 0 | R42: 0 | S42: 0 | T42: 0 | U42: 0 | V42: 0 | W42: 0 | X42: 0
B43: 0 | D43: 0 | E43: 0 | F43: 0 | J43: =IF($B13=0,0,J69*$B13) -> 0 | K43: 0 | L43: 0 | M43: 0 | N43: 0 | O43: 0 | P43: 0 | Q43: 0 | R43: 0 | S43: 0 | T43: 0 | U43: 0 | V43: 0 | W43: 0 | X43: 0
B44: =IF(D70=0,0,B14) -> 0 | D44: =IF($B14=0,0,D70*$B14) -> 0 | E44: 0 | F44: 0 | J44: =IF($B14=0,0,J70*$B14) -> 0 | K44: 0 | L44: 0 | M44: 0 | N44: 0 | O44: 0 | P44: 0 | Q44: 0 | R44: 0 | S44: 0 | T44: 0 | U44: 0 | V44: 0 | W44: 0 | X44: 0
B45: 0 | D45: =IF($B15=0,0,D71*$B15) -> 0 | E45: 0 | F45: 0 | J45: =IF($B15=0,0,J71*$B15) -> 0 | K45: 0 | L45: 0 | M45: 0 | N45: 0 | O45: 0 | P45: 0 | Q45: 0 | R45: 0 | S45: 0 | T45: 0 | U45: 0 | V45: 0 | W45: 0 | X45: 0
B46: 0 | D46: =IF($B16=0,0,D72*$B16) -> 0 | E46: 0 | F46: 0 | J46: =IF($B16=0,0,J72*$B16) -> 0 | K46: 0 | L46: 0 | M46: 0 | N46: 0 | O46: 0 | P46: 0 | Q46: 0 | R46: 0 | S46: 0 | T46: 0 | U46: 0 | V46: 0 | W46: 0 | X46: 0
B47: 0 | D47: =IF($B17=0,0,D73*$B17) -> 0 | E47: 0 | F47: 0 | J47: =IF($B17=0,0,J73*$B17) -> 0 | K47: 0 | L47: 0 | M47: 0 | N47: 0 | O47: 0 | P47: 0 | Q47: 0 | R47: 0 | S47: 0 | T47: 0 | U47: 0 | V47: 0 | W47: 0 | X47: 0
B48: =IF(D74=0,0,B18) -> 0 | D48: =IF($B18=0,0,D74*$B18) -> 0 | E48: 0 | F48: 0 | J48: =IF($B18=0,0,J74*$B18) -> 0 | K48: 0 | L48: 0 | M48: 0 | N48: 0 | O48: 0 | P48: 0 | Q48: 0 | R48: 0 | S48: 0 | T48: 0 | U48: 0 | V48: 0 | W48: 0 | X48: 0
B49: =IF(D75=0,0,B19) -> 0 | D49: 0 | E49: 0 | F49: 0 | J49: =IF($B19=0,0,J75*$B19) -> 0 | K49: 0 | L49: 0 | M49: 0 | N49: 0 | O49: 0 | P49: 0 | Q49: 0 | R49: 0 | S49: 0 | T49: 0 | U49: 0 | V49: 0 | W49: 0 | X49: 0
B50: =IF(D76=0,0,B20) -> 0 | D50: 0 | E50: 0 | F50: 0 | J50: =IF($B20=0,0,J76*$B20) -> 0 | K50: 0 | L50: 0 | M50: 0 | N50: 0 | O50: 0 | P50: 0 | Q50: 0 | R50: 0 | S50: 0 | T50: 0 | U50: 0 | V50: 0 | W50: 0 | X50: 0
B51: =IF(D77=0,0,B21) -> 0 | D51: =IF($B21=0,0,D77*$B21) -> 0 | E51: 0 | F51: 0 | J51: =IF($B21=0,0,J77*$B21) -> 0 | K51: 0 | L51: 0 | M51: 0 | N51: 0 | O51: 0 | P51: 0 | Q51: 0 | R51: 0 | S51: 0 | T51: 0 | U51: 0 | V51: 0 | W51: 0 | X51: 0
B52: =IF(D78=0,0,B22) -> 0 | D52: =IF($B22=0,0,D78*$B22) -> 0 | E52: 0 | F52: 0 | J52: =IF($B22=0,0,J78*$B22) -> 0 | K52: 0 | L52: 0 | M52: 0 | N52: 0 | O52: 0 | P52: 0 | Q52: 0 | R52: 0 | S52: 0 | T52: 0 | U52: 0 | V52: 0 | W52: 0 | X52: 0
D59: Trocken-substanz | E59: Energie ME | F59: XA | J59: XP | K59: XL | L59: XF | M59: Ca | N59: P | O59: Na | P59: Met | Q59: Met+Cys | R59: Lys | S59: Thr | T59: Try | U59: Vit A | V59: Vit D3 | W59: Vit E | X59: Preis €/kg
D61: =HLOOKUP(Futterwertabelle!C$2,Futterwertabelle!C$2:C$126,($A5+1),FALSE) -> 870 | E61: =HLOOKUP(Futterwertabelle!B$2,Futterwertabelle!B$2:B$126,($A5+1),FALSE) -> 12.78 | F61: =(HLOOKUP(Futterwertabelle!D$2,Futterwertabelle!D$2:D$126,($A5+1),FALSE)) -> 17 | J61: =(HLOOKUP(Futterwertabelle!E$2,Futterwertabelle!E$2:E$126,($A5+1),FALSE)) -> 120 | K61: =(HLOOKUP(Futterwertabelle!F$2,Futterwertabelle!F$2:F$126,($A5+1),FALSE)) -> 17 | L61: =(HLOOKUP(Futterwertabelle!G$2,Futterwertabelle!G$2:G$126,($A5+1),FALSE)) -> 25 | M61: =(HLOOKUP(Futterwertabelle!H$2,Futterwertabelle!H$2:H$126,($A5+1),FALSE)) -> 0.6 | N61: =(HLOOKUP(Futterwertabelle!I$2,Futterwertabelle!I$2:I$126,($A5+1),FALSE)) -> 3.3 | O61: =(HLOOKUP(Futterwertabelle!J$2,Futterwertabelle!J$2:J$126,($A5+1),FALSE)) -> 0.1 | P61: =(HLOOKUP(Futterwertabelle!K$2,Futterwertabelle!K$2:K$126,($A5+1),FALSE)) -> 1.8 | Q61: =(HLOOKUP(Futterwertabelle!L$2,Futterwertabelle!L$2:L$126,($A5+1),FALSE)) -> 4.6 | R61: =(HLOOKUP(Futterwertabelle!M$2,Futterwertabelle!M$2:M$126,($A5+1),FALSE)) -> 3.4 | S61: =(HLOOKUP(Futterwertabelle!N$2,Futterwertabelle!N$2:N$126,($A5+1),FALSE)) -> 3.5 | T61: =(HLOOKUP(Futterwertabelle!O$2,Futterwertabelle!O$2:O$126,($A5+1),FALSE)) -> 1.6 | U61: =(HLOOKUP(Futterwertabelle!P$2,Futterwertabelle!P$2:P$126,($A5+1),FALSE)) -> 0 | V61: =(HLOOKUP(Futterwertabelle!Q$2,Futterwertabelle!Q$2:Q$126,($A5+1),FALSE)) -> 0 | W61: =(HLOOKUP(Futterwertabelle!R$2,Futterwertabelle!R$2:R$126,($A5+1),FALSE)) -> 0 | X61: =(HLOOKUP(Futterwertabelle!S$2,Futterwertabelle!S$2:S$126,($A5+1),FALSE)) -> 0.21
D62: =HLOOKUP(Futterwertabelle!C$2,Futterwertabelle!C$2:C$126,($A6+1),FALSE) -> 0 | E62: =HLOOKUP(Futterwertabelle!B$2,Futterwertabelle!B$2:B$126,($A6+1),FALSE) -> 0 | F62: =(HLOOKUP(Futterwertabelle!D$2,Futterwertabelle!D$2:D$126,($A6+1),FALSE)) -> 0 | J62: =(HLOOKUP(Futterwertabelle!E$2,Futterwertabelle!E$2:E$126,($A6+1),FALSE)) -> 0 | K62: =(HLOOKUP(Futterwertabelle!F$2,Futterwertabelle!F$2:F$126,($A6+1),FALSE)) -> 0 | L62: =(HLOOKUP(Futterwertabelle!G$2,Futterwertabelle!G$2:G$126,($A6+1),FALSE)) -> 0 | M62: =(HLOOKUP(Futterwertabelle!H$2,Futterwertabelle!H$2:H$126,($A6+1),FALSE)) -> 0 | N62: =(HLOOKUP(Futterwertabelle!I$2,Futterwertabelle!I$2:I$126,($A6+1),FALSE)) -> 0 | O62: =(HLOOKUP(Futterwertabelle!J$2,Futterwertabelle!J$2:J$126,($A6+1),FALSE)) -> 0 | P62: =(HLOOKUP(Futterwertabelle!K$2,Futterwertabelle!K$2:K$126,($A6+1),FALSE)) -> 0 | Q62: =(HLOOKUP(Futterwertabelle!L$2,Futterwertabelle!L$2:L$126,($A6+1),FALSE)) -> 0 | R62: =(HLOOKUP(Futterwertabelle!M$2,Futterwertabelle!M$2:M$126,($A6+1),FALSE)) -> 0 | S62: =(HLOOKUP(Futterwertabelle!N$2,Futterwertabelle!N$2:N$126,($A6+1),FALSE)) -> 0 | T62: =(HLOOKUP(Futterwertabelle!O$2,Futterwertabelle!O$2:O$126,($A6+1),FALSE)) -> 0 | U62: =(HLOOKUP(Futterwertabelle!P$2,Futterwertabelle!P$2:P$126,($A6+1),FALSE)) -> 0 | V62: =(HLOOKUP(Futterwertabelle!Q$2,Futterwertabelle!Q$2:Q$126,($A6+1),FALSE)) -> 0 | W62: =(HLOOKUP(Futterwertabelle!R$2,Futterwertabelle!R$2:R$126,($A6+1),FALSE)) -> 0 | X62: =(HLOOKUP(Futterwertabelle!S$2,Futterwertabelle!S$2:S$126,($A6+1),FALSE)) -> 0
D63: =HLOOKUP(Futterwertabelle!C$2,Futterwertabelle!C$2:C$126,($A7+1),FALSE) -> 0 | E63: =HLOOKUP(Futterwertabelle!B$2,Futterwertabelle!B$2:B$126,($A7+1),FALSE) -> 0 | F63: =(HLOOKUP(Futterwertabelle!D$2,Futterwertabelle!D$2:D$126,($A7+1),FALSE)) -> 0 | J63: =(HLOOKUP(Futterwertabelle!E$2,Futterwertabelle!E$2:E$126,($A7+1),FALSE)) -> 0 | K63: =(HLOOKUP(Futterwertabelle!F$2,Futterwertabelle!F$2:F$126,($A7+1),FALSE)) -> 0 | L63: =(HLOOKUP(Futterwertabelle!G$2,Futterwertabelle!G$2:G$126,($A7+1),FALSE)) -> 0 | M63: =(HLOOKUP(Futterwertabelle!H$2,Futterwertabelle!H$2:H$126,($A7+1),FALSE)) -> 0 | N63: =(HLOOKUP(Futterwertabelle!I$2,Futterwertabelle!I$2:I$126,($A7+1),FALSE)) -> 0 | O63: =(HLOOKUP(Futterwertabelle!J$2,Futterwertabelle!J$2:J$126,($A7+1),FALSE)) -> 0 | P63: =(HLOOKUP(Futterwertabelle!K$2,Futterwertabelle!K$2:K$126,($A7+1),FALSE)) -> 0 | Q63: =(HLOOKUP(Futterwertabelle!L$2,Futterwertabelle!L$2:L$126,($A7+1),FALSE)) -> 0 | R63: =(HLOOKUP(Futterwertabelle!M$2,Futterwertabelle!M$2:M$126,($A7+1),FALSE)) -> 0 | S63: =(HLOOKUP(Futterwertabelle!N$2,Futterwertabelle!N$2:N$126,($A7+1),FALSE)) -> 0 | T63: =(HLOOKUP(Futterwertabelle!O$2,Futterwertabelle!O$2:O$126,($A7+1),FALSE)) -> 0 | U63: =(HLOOKUP(Futterwertabelle!P$2,Futterwertabelle!P$2:P$126,($A7+1),FALSE)) -> 0 | V63: =(HLOOKUP(Futterwertabelle!Q$2,Futterwertabelle!Q$2:Q$126,($A7+1),FALSE)) -> 0 | W63: =(HLOOKUP(Futterwertabelle!R$2,Futterwertabelle!R$2:R$126,($A7+1),FALSE)) -> 0 | X63: =(HLOOKUP(Futterwertabelle!S$2,Futterwertabelle!S$2:S$126,($A7+1),FALSE)) -> 0
D64: =HLOOKUP(Futterwertabelle!C$2,Futterwertabelle!C$2:C$126,($A8+1),FALSE) -> 0 | E64: =HLOOKUP(Futterwertabelle!B$2,Futterwertabelle!B$2:B$126,($A8+1),FALSE) -> 0 | F64: =(HLOOKUP(Futterwertabelle!D$2,Futterwertabelle!D$2:D$126,($A8+1),FALSE)) -> 0 | J64: =(HLOOKUP(Futterwertabelle!E$2,Futterwertabelle!E$2:E$126,($A8+1),FALSE)) -> 0 | K64: =(HLOOKUP(Futterwertabelle!F$2,Futterwertabelle!F$2:F$126,($A8+1),FALSE)) -> 0 | L64: =(HLOOKUP(Futterwertabelle!G$2,Futterwertabelle!G$2:G$126,($A8+1),FALSE)) -> 0 | M64: =(HLOOKUP(Futterwertabelle!H$2,Futterwertabelle!H$2:H$126,($A8+1),FALSE)) -> 0 | N64: =(HLOOKUP(Futterwertabelle!I$2,Futterwertabelle!I$2:I$126,($A8+1),FALSE)) -> 0 | O64: =(HLOOKUP(Futterwertabelle!J$2,Futterwertabelle!J$2:J$126,($A8+1),FALSE)) -> 0 | P64: =(HLOOKUP(Futterwertabelle!K$2,Futterwertabelle!K$2:K$126,($A8+1),FALSE)) -> 0 | Q64: =(HLOOKUP(Futterwertabelle!L$2,Futterwertabelle!L$2:L$126,($A8+1),FALSE)) -> 0 | R64: =(HLOOKUP(Futterwertabelle!M$2,Futterwertabelle!M$2:M$126,($A8+1),FALSE)) -> 0 | S64: =(HLOOKUP(Futterwertabelle!N$2,Futterwertabelle!N$2:N$126,($A8+1),FALSE)) -> 0 | T64: =(HLOOKUP(Futterwertabelle!O$2,Futterwertabelle!O$2:O$126,($A8+1),FALSE)) -> 0 | U64: =(HLOOKUP(Futterwertabelle!P$2,Futterwertabelle!P$2:P$126,($A8+1),FALSE)) -> 0 | V64: =(HLOOKUP(Futterwertabelle!Q$2,Futterwertabelle!Q$2:Q$126,($A8+1),FALSE)) -> 0 | W64: =(HLOOKUP(Futterwertabelle!R$2,Futterwertabelle!R$2:R$126,($A8+1),FALSE)) -> 0 | X64: =(HLOOKUP(Futterwertabelle!S$2,Futterwertabelle!S$2:S$126,($A8+1),FALSE)) -> 0
D65: =HLOOKUP(Futterwertabelle!C$2,Futterwertabelle!C$2:C$126,($A9+1),FALSE) -> 0 | E65: =HLOOKUP(Futterwertabelle!B$2,Futterwertabelle!B$2:B$126,($A9+1),FALSE) -> 0 | F65: =(HLOOKUP(Futterwertabelle!D$2,Futterwertabelle!D$2:D$126,($A9+1),FALSE)) -> 0 | J65: =(HLOOKUP(Futterwertabelle!E$2,Futterwertabelle!E$2:E$126,($A9+1),FALSE)) -> 0 | K65: =(HLOOKUP(Futterwertabelle!F$2,Futterwertabelle!F$2:F$126,($A9+1),FALSE)) -> 0 | L65: =(HLOOKUP(Futterwertabelle!G$2,Futterwertabelle!G$2:G$126,($A9+1),FALSE)) -> 0 | M65: =(HLOOKUP(Futterwertabelle!H$2,Futterwertabelle!H$2:H$126,($A9+1),FALSE)) -> 0 | N65: =(HLOOKUP(Futterwertabelle!I$2,Futterwertabelle!I$2:I$126,($A9+1),FALSE)) -> 0 | O65: =(HLOOKUP(Futterwertabelle!J$2,Futterwertabelle!J$2:J$126,($A9+1),FALSE)) -> 0 | P65: =(HLOOKUP(Futterwertabelle!K$2,Futterwertabelle!K$2:K$126,($A9+1),FALSE)) -> 0 | Q65: =(HLOOKUP(Futterwertabelle!L$2,Futterwertabelle!L$2:L$126,($A9+1),FALSE)) -> 0 | R65: =(HLOOKUP(Futterwertabelle!M$2,Futterwertabelle!M$2:M$126,($A9+1),FALSE)) -> 0 | S65: =(HLOOKUP(Futterwertabelle!N$2,Futterwertabelle!N$2:N$126,($A9+1),FALSE)) -> 0 | T65: =(HLOOKUP(Futterwertabelle!O$2,Futterwertabelle!O$2:O$126,($A9+1),FALSE)) -> 0 | U65: =(HLOOKUP(Futterwertabelle!P$2,Futterwertabelle!P$2:P$126,($A9+1),FALSE)) -> 0 | V65: =(HLOOKUP(Futterwertabelle!Q$2,Futterwertabelle!Q$2:Q$126,($A9+1),FALSE)) -> 0 | W65: =(HLOOKUP(Futterwertabelle!R$2,Futterwertabelle!R$2:R$126,($A9+1),FALSE)) -> 0 | X65: =(HLOOKUP(Futterwertabelle!S$2,Futterwertabelle!S$2:S$126,($A9+1),FALSE)) -> 0
D66: =HLOOKUP(Futterwertabelle!C$2,Futterwertabelle!C$2:C$126,($A10+1),FALSE) -> 0 | E66: =HLOOKUP(Futterwertabelle!B$2,Futterwertabelle!B$2:B$126,($A10+1),FALSE) -> 0 | F66: =(HLOOKUP(Futterwertabelle!D$2,Futterwertabelle!D$2:D$126,($A10+1),FALSE)) -> 0 | J66: =(HLOOKUP(Futterwertabelle!E$2,Futterwertabelle!E$2:E$126,($A10+1),FALSE)) -> 0 | K66: =(HLOOKUP(Futterwertabelle!F$2,Futterwertabelle!F$2:F$126,($A10+1),FALSE)) -> 0 | L66: =(HLOOKUP(Futterwertabelle!G$2,Futterwertabelle!G$2:G$126,($A10+1),FALSE)) -> 0 | M66: =(HLOOKUP(Futterwertabelle!H$2,Futterwertabelle!H$2:H$126,($A10+1),FALSE)) -> 0 | N66: =(HLOOKUP(Futterwertabelle!I$2,Futterwertabelle!I$2:I$126,($A10+1),FALSE)) -> 0 | O66: =(HLOOKUP(Futterwertabelle!J$2,Futterwertabelle!J$2:J$126,($A10+1),FALSE)) -> 0 | P66: =(HLOOKUP(Futterwertabelle!K$2,Futterwertabelle!K$2:K$126,($A10+1),FALSE)) -> 0 | Q66: =(HLOOKUP(Futterwertabelle!L$2,Futterwertabelle!L$2:L$126,($A10+1),FALSE)) -> 0 | R66: =(HLOOKUP(Futterwertabelle!M$2,Futterwertabelle!M$2:M$126,($A10+1),FALSE)) -> 0 | S66: =(HLOOKUP(Futterwertabelle!N$2,Futterwertabelle!N$2:N$126,($A10+1),FALSE)) -> 0 | T66: =(HLOOKUP(Futterwertabelle!O$2,Futterwertabelle!O$2:O$126,($A10+1),FALSE)) -> 0 | U66: =(HLOOKUP(Futterwertabelle!P$2,Futterwertabelle!P$2:P$126,($A10+1),FALSE)) -> 0 | V66: =(HLOOKUP(Futterwertabelle!Q$2,Futterwertabelle!Q$2:Q$126,($A10+1),FALSE)) -> 0 | W66: =(HLOOKUP(Futterwertabelle!R$2,Futterwertabelle!R$2:R$126,($A10+1),FALSE)) -> 0 | X66: =(HLOOKUP(Futterwertabelle!S$2,Futterwertabelle!S$2:S$126,($A10+1),FALSE)) -> 0
D67: =HLOOKUP(Futterwertabelle!C$2,Futterwertabelle!C$2:C$126,($A11+1),FALSE) -> 0 | E67: =HLOOKUP(Futterwertabelle!B$2,Futterwertabelle!B$2:B$126,($A11+1),FALSE) -> 0 | F67: =(HLOOKUP(Futterwertabelle!D$2,Futterwertabelle!D$2:D$126,($A11+1),FALSE)) -> 0 | J67: =(HLOOKUP(Futterwertabelle!E$2,Futterwertabelle!E$2:E$126,($A11+1),FALSE)) -> 0 | K67: =(HLOOKUP(Futterwertabelle!F$2,Futterwertabelle!F$2:F$126,($A11+1),FALSE)) -> 0 | L67: =(HLOOKUP(Futterwertabelle!G$2,Futterwertabelle!G$2:G$126,($A11+1),FALSE)) -> 0 | M67: =(HLOOKUP(Futterwertabelle!H$2,Futterwertabelle!H$2:H$126,($A11+1),FALSE)) -> 0 | N67: =(HLOOKUP(Futterwertabelle!I$2,Futterwertabelle!I$2:I$126,($A11+1),FALSE)) -> 0 | O67: =(HLOOKUP(Futterwertabelle!J$2,Futterwertabelle!J$2:J$126,($A11+1),FALSE)) -> 0 | P67: =(HLOOKUP(Futterwertabelle!K$2,Futterwertabelle!K$2:K$126,($A11+1),FALSE)) -> 0 | Q67: =(HLOOKUP(Futterwertabelle!L$2,Futterwertabelle!L$2:L$126,($A11+1),FALSE)) -> 0 | R67: =(HLOOKUP(Futterwertabelle!M$2,Futterwertabelle!M$2:M$126,($A11+1),FALSE)) -> 0 | S67: =(HLOOKUP(Futterwertabelle!N$2,Futterwertabelle!N$2:N$126,($A11+1),FALSE)) -> 0 | T67: =(HLOOKUP(Futterwertabelle!O$2,Futterwertabelle!O$2:O$126,($A11+1),FALSE)) -> 0 | U67: =(HLOOKUP(Futterwertabelle!P$2,Futterwertabelle!P$2:P$126,($A11+1),FALSE)) -> 0 | V67: =(HLOOKUP(Futterwertabelle!Q$2,Futterwertabelle!Q$2:Q$126,($A11+1),FALSE)) -> 0 | W67: =(HLOOKUP(Futterwertabelle!R$2,Futterwertabelle!R$2:R$126,($A11+1),FALSE)) -> 0 | X67: =(HLOOKUP(Futterwertabelle!S$2,Futterwertabelle!S$2:S$126,($A11+1),FALSE)) -> 0
D68: =HLOOKUP(Futterwertabelle!C$2,Futterwertabelle!C$2:C$126,($A12+1),FALSE) -> 0 | E68: =HLOOKUP(Futterwertabelle!B$2,Futterwertabelle!B$2:B$126,($A12+1),FALSE) -> 0 | F68: =(HLOOKUP(Futterwertabelle!D$2,Futterwertabelle!D$2:D$126,($A12+1),FALSE)) -> 0 | J68: =(HLOOKUP(Futterwertabelle!E$2,Futterwertabelle!E$2:E$126,($A12+1),FALSE)) -> 0 | K68: =(HLOOKUP(Futterwertabelle!F$2,Futterwertabelle!F$2:F$126,($A12+1),FALSE)) -> 0 | L68: =(HLOOKUP(Futterwertabelle!G$2,Futterwertabelle!G$2:G$126,($A12+1),FALSE)) -> 0 | M68: =(HLOOKUP(Futterwertabelle!H$2,Futterwertabelle!H$2:H$126,($A12+1),FALSE)) -> 0 | N68: =(HLOOKUP(Futterwertabelle!I$2,Futterwertabelle!I$2:I$126,($A12+1),FALSE)) -> 0 | O68: =(HLOOKUP(Futterwertabelle!J$2,Futterwertabelle!J$2:J$126,($A12+1),FALSE)) -> 0 | P68: =(HLOOKUP(Futterwertabelle!K$2,Futterwertabelle!K$2:K$126,($A12+1),FALSE)) -> 0 | Q68: =(HLOOKUP(Futterwertabelle!L$2,Futterwertabelle!L$2:L$126,($A12+1),FALSE)) -> 0 | R68: =(HLOOKUP(Futterwertabelle!M$2,Futterwertabelle!M$2:M$126,($A12+1),FALSE)) -> 0 | S68: =(HLOOKUP(Futterwertabelle!N$2,Futterwertabelle!N$2:N$126,($A12+1),FALSE)) -> 0 | T68: =(HLOOKUP(Futterwertabelle!O$2,Futterwertabelle!O$2:O$126,($A12+1),FALSE)) -> 0 | U68: =(HLOOKUP(Futterwertabelle!P$2,Futterwertabelle!P$2:P$126,($A12+1),FALSE)) -> 0 | V68: =(HLOOKUP(Futterwertabelle!Q$2,Futterwertabelle!Q$2:Q$126,($A12+1),FALSE)) -> 0 | W68: =(HLOOKUP(Futterwertabelle!R$2,Futterwertabelle!R$2:R$126,($A12+1),FALSE)) -> 0 | X68: =(HLOOKUP(Futterwertabelle!S$2,Futterwertabelle!S$2:S$126,($A12+1),FALSE)) -> 0
D69: =HLOOKUP(Futterwertabelle!C$2,Futterwertabelle!C$2:C$126,($A13+1),FALSE) -> 0 | E69: =HLOOKUP(Futterwertabelle!B$2,Futterwertabelle!B$2:B$126,($A13+1),FALSE) -> 0 | F69: =(HLOOKUP(Futterwertabelle!D$2,Futterwertabelle!D$2:D$126,($A13+1),FALSE)) -> 0 | J69: =(HLOOKUP(Futterwertabelle!E$2,Futterwertabelle!E$2:E$126,($A13+1),FALSE)) -> 0 | K69: =(HLOOKUP(Futterwertabelle!F$2,Futterwertabelle!F$2:F$126,($A13+1),FALSE)) -> 0 | L69: =(HLOOKUP(Futterwertabelle!G$2,Futterwertabelle!G$2:G$126,($A13+1),FALSE)) -> 0 | M69: =(HLOOKUP(Futterwertabelle!H$2,Futterwertabelle!H$2:H$126,($A13+1),FALSE)) -> 0 | N69: =(HLOOKUP(Futterwertabelle!I$2,Futterwertabelle!I$2:I$126,($A13+1),FALSE)) -> 0 | O69: =(HLOOKUP(Futterwertabelle!J$2,Futterwertabelle!J$2:J$126,($A13+1),FALSE)) -> 0 | P69: =(HLOOKUP(Futterwertabelle!K$2,Futterwertabelle!K$2:K$126,($A13+1),FALSE)) -> 0 | Q69: =(HLOOKUP(Futterwertabelle!L$2,Futterwertabelle!L$2:L$126,($A13+1),FALSE)) -> 0 | R69: =(HLOOKUP(Futterwertabelle!M$2,Futterwertabelle!M$2:M$126,($A13+1),FALSE)) -> 0 | S69: =(HLOOKUP(Futterwertabelle!N$2,Futterwertabelle!N$2:N$126,($A13+1),FALSE)) -> 0 | T69: =(HLOOKUP(Futterwertabelle!O$2,Futterwertabelle!O$2:O$126,($A13+1),FALSE)) -> 0 | U69: =(HLOOKUP(Futterwertabelle!P$2,Futterwertabelle!P$2:P$126,($A13+1),FALSE)) -> 0 | V69: =(HLOOKUP(Futterwertabelle!Q$2,Futterwertabelle!Q$2:Q$126,($A13+1),FALSE)) -> 0 | W69: =(HLOOKUP(Futterwertabelle!R$2,Futterwertabelle!R$2:R$126,($A13+1),FALSE)) -> 0 | X69: =(HLOOKUP(Futterwertabelle!S$2,Futterwertabelle!S$2:S$126,($A13+1),FALSE)) -> 0
D70: =HLOOKUP(Futterwertabelle!C$2,Futterwertabelle!C$2:C$126,($A14+1),FALSE) -> 0 | E70: =HLOOKUP(Futterwertabelle!B$2,Futterwertabelle!B$2:B$126,($A14+1),FALSE) -> 0 | F70: =(HLOOKUP(Futterwertabelle!D$2,Futterwertabelle!D$2:D$126,($A14+1),FALSE)) -> 0 | J70: =(HLOOKUP(Futterwertabelle!E$2,Futterwertabelle!E$2:E$126,($A14+1),FALSE)) -> 0 | K70: =(HLOOKUP(Futterwertabelle!F$2,Futterwertabelle!F$2:F$126,($A14+1),FALSE)) -> 0 | L70: =(HLOOKUP(Futterwertabelle!G$2,Futterwertabelle!G$2:G$126,($A14+1),FALSE)) -> 0 | M70: =(HLOOKUP(Futterwertabelle!H$2,Futterwertabelle!H$2:H$126,($A14+1),FALSE)) -> 0 | N70: =(HLOOKUP(Futterwertabelle!I$2,Futterwertabelle!I$2:I$126,($A14+1),FALSE)) -> 0 | O70: =(HLOOKUP(Futterwertabelle!J$2,Futterwertabelle!J$2:J$126,($A14+1),FALSE)) -> 0 | P70: =(HLOOKUP(Futterwertabelle!K$2,Futterwertabelle!K$2:K$126,($A14+1),FALSE)) -> 0 | Q70: =(HLOOKUP(Futterwertabelle!L$2,Futterwertabelle!L$2:L$126,($A14+1),FALSE)) -> 0 | R70: =(HLOOKUP(Futterwertabelle!M$2,Futterwertabelle!M$2:M$126,($A14+1),FALSE)) -> 0 | S70: =(HLOOKUP(Futterwertabelle!N$2,Futterwertabelle!N$2:N$126,($A14+1),FALSE)) -> 0 | T70: =(HLOOKUP(Futterwertabelle!O$2,Futterwertabelle!O$2:O$126,($A14+1),FALSE)) -> 0 | U70: =(HLOOKUP(Futterwertabelle!P$2,Futterwertabelle!P$2:P$126,($A14+1),FALSE)) -> 0 | V70: =(HLOOKUP(Futterwertabelle!Q$2,Futterwertabelle!Q$2:Q$126,($A14+1),FALSE)) -> 0 | W70: =(HLOOKUP(Futterwertabelle!R$2,Futterwertabelle!R$2:R$126,($A14+1),FALSE)) -> 0 | X70: =(HLOOKUP(Futterwertabelle!S$2,Futterwertabelle!S$2:S$126,($A14+1),FALSE)) -> 0
D71: =HLOOKUP(Futterwertabelle!C$2,Futterwertabelle!C$2:C$126,($A15+1),FALSE) -> 0 | E71: =HLOOKUP(Futterwertabelle!B$2,Futterwertabelle!B$2:B$126,($A15+1),FALSE) -> 0 | F71: =(HLOOKUP(Futterwertabelle!D$2,Futterwertabelle!D$2:D$126,($A15+1),FALSE)) -> 0 | J71: =(HLOOKUP(Futterwertabelle!E$2,Futterwertabelle!E$2:E$126,($A15+1),FALSE)) -> 0 | K71: =(HLOOKUP(Futterwertabelle!F$2,Futterwertabelle!F$2:F$126,($A15+1),FALSE)) -> 0 | L71: =(HLOOKUP(Futterwertabelle!G$2,Futterwertabelle!G$2:G$126,($A15+1),FALSE)) -> 0 | M71: =(HLOOKUP(Futterwertabelle!H$2,Futterwertabelle!H$2:H$126,($A15+1),FALSE)) -> 0 | N71: =(HLOOKUP(Futterwertabelle!I$2,Futterwertabelle!I$2:I$126,($A15+1),FALSE)) -> 0 | O71: =(HLOOKUP(Futterwertabelle!J$2,Futterwertabelle!J$2:J$126,($A15+1),FALSE)) -> 0 | P71: =(HLOOKUP(Futterwertabelle!K$2,Futterwertabelle!K$2:K$126,($A15+1),FALSE)) -> 0 | Q71: =(HLOOKUP(Futterwertabelle!L$2,Futterwertabelle!L$2:L$126,($A15+1),FALSE)) -> 0 | R71: =(HLOOKUP(Futterwertabelle!M$2,Futterwertabelle!M$2:M$126,($A15+1),FALSE)) -> 0 | S71: =(HLOOKUP(Futterwertabelle!N$2,Futterwertabelle!N$2:N$126,($A15+1),FALSE)) -> 0 | T71: =(HLOOKUP(Futterwertabelle!O$2,Futterwertabelle!O$2:O$126,($A15+1),FALSE)) -> 0 | U71: =(HLOOKUP(Futterwertabelle!P$2,Futterwertabelle!P$2:P$126,($A15+1),FALSE)) -> 0 | V71: =(HLOOKUP(Futterwertabelle!Q$2,Futterwertabelle!Q$2:Q$126,($A15+1),FALSE)) -> 0 | W71: =(HLOOKUP(Futterwertabelle!R$2,Futterwertabelle!R$2:R$126,($A15+1),FALSE)) -> 0 | X71: =(HLOOKUP(Futterwertabelle!S$2,Futterwertabelle!S$2:S$126,($A15+1),FALSE)) -> 0
D72: =HLOOKUP(Futterwertabelle!C$2,Futterwertabelle!C$2:C$126,($A16+1),FALSE) -> 0 | E72: =HLOOKUP(Futterwertabelle!B$2,Futterwertabelle!B$2:B$126,($A16+1),FALSE) -> 0 | F72: =(HLOOKUP(Futterwertabelle!D$2,Futterwertabelle!D$2:D$126,($A16+1),FALSE)) -> 0 | J72: =(HLOOKUP(Futterwertabelle!E$2,Futterwertabelle!E$2:E$126,($A16+1),FALSE)) -> 0 | K72: =(HLOOKUP(Futterwertabelle!F$2,Futterwertabelle!F$2:F$126,($A16+1),FALSE)) -> 0 | L72: =(HLOOKUP(Futterwertabelle!G$2,Futterwertabelle!G$2:G$126,($A16+1),FALSE)) -> 0 | M72: =(HLOOKUP(Futterwertabelle!H$2,Futterwertabelle!H$2:H$126,($A16+1),FALSE)) -> 0 | N72: =(HLOOKUP(Futterwertabelle!I$2,Futterwertabelle!I$2:I$126,($A16+1),FALSE)) -> 0 | O72: =(HLOOKUP(Futterwertabelle!J$2,Futterwertabelle!J$2:J$126,($A16+1),FALSE)) -> 0 | P72: =(HLOOKUP(Futterwertabelle!K$2,Futterwertabelle!K$2:K$126,($A16+1),FALSE)) -> 0 | Q72: =(HLOOKUP(Futterwertabelle!L$2,Futterwertabelle!L$2:L$126,($A16+1),FALSE)) -> 0 | R72: =(HLOOKUP(Futterwertabelle!M$2,Futterwertabelle!M$2:M$126,($A16+1),FALSE)) -> 0 | S72: =(HLOOKUP(Futterwertabelle!N$2,Futterwertabelle!N$2:N$126,($A16+1),FALSE)) -> 0 | T72: =(HLOOKUP(Futterwertabelle!O$2,Futterwertabelle!O$2:O$126,($A16+1),FALSE)) -> 0 | U72: =(HLOOKUP(Futterwertabelle!P$2,Futterwertabelle!P$2:P$126,($A16+1),FALSE)) -> 0 | V72: =(HLOOKUP(Futterwertabelle!Q$2,Futterwertabelle!Q$2:Q$126,($A16+1),FALSE)) -> 0 | W72: =(HLOOKUP(Futterwertabelle!R$2,Futterwertabelle!R$2:R$126,($A16+1),FALSE)) -> 0 | X72: =(HLOOKUP(Futterwertabelle!S$2,Futterwertabelle!S$2:S$126,($A16+1),FALSE)) -> 0
D73: =HLOOKUP(Futterwertabelle!C$2,Futterwertabelle!C$2:C$126,($A17+1),FALSE) -> 0 | E73: =HLOOKUP(Futterwertabelle!B$2,Futterwertabelle!B$2:B$126,($A17+1),FALSE) -> 0 | F73: =(HLOOKUP(Futterwertabelle!D$2,Futterwertabelle!D$2:D$126,($A17+1),FALSE)) -> 0 | J73: =(HLOOKUP(Futterwertabelle!E$2,Futterwertabelle!E$2:E$126,($A17+1),FALSE)) -> 0 | K73: =(HLOOKUP(Futterwertabelle!F$2,Futterwertabelle!F$2:F$126,($A17+1),FALSE)) -> 0 | L73: =(HLOOKUP(Futterwertabelle!G$2,Futterwertabelle!G$2:G$126,($A17+1),FALSE)) -> 0 | M73: =(HLOOKUP(Futterwertabelle!H$2,Futterwertabelle!H$2:H$126,($A17+1),FALSE)) -> 0 | N73: =(HLOOKUP(Futterwertabelle!I$2,Futterwertabelle!I$2:I$126,($A17+1),FALSE)) -> 0 | O73: =(HLOOKUP(Futterwertabelle!J$2,Futterwertabelle!J$2:J$126,($A17+1),FALSE)) -> 0 | P73: =(HLOOKUP(Futterwertabelle!K$2,Futterwertabelle!K$2:K$126,($A17+1),FALSE)) -> 0 | Q73: =(HLOOKUP(Futterwertabelle!L$2,Futterwertabelle!L$2:L$126,($A17+1),FALSE)) -> 0 | R73: =(HLOOKUP(Futterwertabelle!M$2,Futterwertabelle!M$2:M$126,($A17+1),FALSE)) -> 0 | S73: =(HLOOKUP(Futterwertabelle!N$2,Futterwertabelle!N$2:N$126,($A17+1),FALSE)) -> 0 | T73: =(HLOOKUP(Futterwertabelle!O$2,Futterwertabelle!O$2:O$126,($A17+1),FALSE)) -> 0 | U73: =(HLOOKUP(Futterwertabelle!P$2,Futterwertabelle!P$2:P$126,($A17+1),FALSE)) -> 0 | V73: =(HLOOKUP(Futterwertabelle!Q$2,Futterwertabelle!Q$2:Q$126,($A17+1),FALSE)) -> 0 | W73: =(HLOOKUP(Futterwertabelle!R$2,Futterwertabelle!R$2:R$126,($A17+1),FALSE)) -> 0 | X73: =(HLOOKUP(Futterwertabelle!S$2,Futterwertabelle!S$2:S$126,($A17+1),FALSE)) -> 0
D74: =HLOOKUP(Futterwertabelle!C$2,Futterwertabelle!C$2:C$126,($A18+1),FALSE) -> 0 | E74: =HLOOKUP(Futterwertabelle!B$2,Futterwertabelle!B$2:B$126,($A18+1),FALSE) -> 0 | F74: =(HLOOKUP(Futterwertabelle!D$2,Futterwertabelle!D$2:D$126,($A18+1),FALSE)) -> 0 | J74: =(HLOOKUP(Futterwertabelle!E$2,Futterwertabelle!E$2:E$126,($A18+1),FALSE)) -> 0 | K74: =(HLOOKUP(Futterwertabelle!F$2,Futterwertabelle!F$2:F$126,($A18+1),FALSE)) -> 0 | L74: =(HLOOKUP(Futterwertabelle!G$2,Futterwertabelle!G$2:G$126,($A18+1),FALSE)) -> 0 | M74: =(HLOOKUP(Futterwertabelle!H$2,Futterwertabelle!H$2:H$126,($A18+1),FALSE)) -> 0 | N74: =(HLOOKUP(Futterwertabelle!I$2,Futterwertabelle!I$2:I$126,($A18+1),FALSE)) -> 0 | O74: =(HLOOKUP(Futterwertabelle!J$2,Futterwertabelle!J$2:J$126,($A18+1),FALSE)) -> 0 | P74: =(HLOOKUP(Futterwertabelle!K$2,Futterwertabelle!K$2:K$126,($A18+1),FALSE)) -> 0 | Q74: =(HLOOKUP(Futterwertabelle!L$2,Futterwertabelle!L$2:L$126,($A18+1),FALSE)) -> 0 | R74: =(HLOOKUP(Futterwertabelle!M$2,Futterwertabelle!M$2:M$126,($A18+1),FALSE)) -> 0 | S74: =(HLOOKUP(Futterwertabelle!N$2,Futterwertabelle!N$2:N$126,($A18+1),FALSE)) -> 0 | T74: =(HLOOKUP(Futterwertabelle!O$2,Futterwertabelle!O$2:O$126,($A18+1),FALSE)) -> 0 | U74: =(HLOOKUP(Futterwertabelle!P$2,Futterwertabelle!P$2:P$126,($A18+1),FALSE)) -> 0 | V74: =(HLOOKUP(Futterwertabelle!Q$2,Futterwertabelle!Q$2:Q$126,($A18+1),FALSE)) -> 0 | W74: =(HLOOKUP(Futterwertabelle!R$2,Futterwertabelle!R$2:R$126,($A18+1),FALSE)) -> 0 | X74: =(HLOOKUP(Futterwertabelle!S$2,Futterwertabelle!S$2:S$126,($A18+1),FALSE)) -> 0
D75: =HLOOKUP(Futterwertabelle!C$2,Futterwertabelle!C$2:C$126,($A19+1),FALSE) -> 0 | E75: =HLOOKUP(Futterwertabelle!B$2,Futterwertabelle!B$2:B$126,($A19+1),FALSE) -> 0 | F75: =(HLOOKUP(Futterwertabelle!D$2,Futterwertabelle!D$2:D$126,($A19+1),FALSE)) -> 0 | J75: =(HLOOKUP(Futterwertabelle!E$2,Futterwertabelle!E$2:E$126,($A19+1),FALSE)) -> 0 | K75: =(HLOOKUP(Futterwertabelle!F$2,Futterwertabelle!F$2:F$126,($A19+1),FALSE)) -> 0 | L75: =(HLOOKUP(Futterwertabelle!G$2,Futterwertabelle!G$2:G$126,($A19+1),FALSE)) -> 0 | M75: =(HLOOKUP(Futterwertabelle!H$2,Futterwertabelle!H$2:H$126,($A19+1),FALSE)) -> 0 | N75: =(HLOOKUP(Futterwertabelle!I$2,Futterwertabelle!I$2:I$126,($A19+1),FALSE)) -> 0 | O75: =(HLOOKUP(Futterwertabelle!J$2,Futterwertabelle!J$2:J$126,($A19+1),FALSE)) -> 0 | P75: =(HLOOKUP(Futterwertabelle!K$2,Futterwertabelle!K$2:K$126,($A19+1),FALSE)) -> 0 | Q75: =(HLOOKUP(Futterwertabelle!L$2,Futterwertabelle!L$2:L$126,($A19+1),FALSE)) -> 0 | R75: =(HLOOKUP(Futterwertabelle!M$2,Futterwertabelle!M$2:M$126,($A19+1),FALSE)) -> 0 | S75: =(HLOOKUP(Futterwertabelle!N$2,Futterwertabelle!N$2:N$126,($A19+1),FALSE)) -> 0 | T75: =(HLOOKUP(Futterwertabelle!O$2,Futterwertabelle!O$2:O$126,($A19+1),FALSE)) -> 0 | U75: =(HLOOKUP(Futterwertabelle!P$2,Futterwertabelle!P$2:P$126,($A19+1),FALSE)) -> 0 | V75: =(HLOOKUP(Futterwertabelle!Q$2,Futterwertabelle!Q$2:Q$126,($A19+1),FALSE)) -> 0 | W75: =(HLOOKUP(Futterwertabelle!R$2,Futterwertabelle!R$2:R$126,($A19+1),FALSE)) -> 0 | X75: =(HLOOKUP(Futterwertabelle!S$2,Futterwertabelle!S$2:S$126,($A19+1),FALSE)) -> 0
D76: =HLOOKUP(Futterwertabelle!C$2,Futterwertabelle!C$2:C$126,($A20+1),FALSE) -> 0 | E76: =HLOOKUP(Futterwertabelle!B$2,Futterwertabelle!B$2:B$126,($A20+1),FALSE) -> 0 | F76: =(HLOOKUP(Futterwertabelle!D$2,Futterwertabelle!D$2:D$126,($A20+1),FALSE)) -> 0 | J76: =(HLOOKUP(Futterwertabelle!E$2,Futterwertabelle!E$2:E$126,($A20+1),FALSE)) -> 0 | K76: =(HLOOKUP(Futterwertabelle!F$2,Futterwertabelle!F$2:F$126,($A20+1),FALSE)) -> 0 | L76: =(HLOOKUP(Futterwertabelle!G$2,Futterwertabelle!G$2:G$126,($A20+1),FALSE)) -> 0 | M76: =(HLOOKUP(Futterwertabelle!H$2,Futterwertabelle!H$2:H$126,($A20+1),FALSE)) -> 0 | N76: =(HLOOKUP(Futterwertabelle!I$2,Futterwertabelle!I$2:I$126,($A20+1),FALSE)) -> 0 | O76: =(HLOOKUP(Futterwertabelle!J$2,Futterwertabelle!J$2:J$126,($A20+1),FALSE)) -> 0 | P76: =(HLOOKUP(Futterwertabelle!K$2,Futterwertabelle!K$2:K$126,($A20+1),FALSE)) -> 0 | Q76: =(HLOOKUP(Futterwertabelle!L$2,Futterwertabelle!L$2:L$126,($A20+1),FALSE)) -> 0 | R76: =(HLOOKUP(Futterwertabelle!M$2,Futterwertabelle!M$2:M$126,($A20+1),FALSE)) -> 0 | S76: =(HLOOKUP(Futterwertabelle!N$2,Futterwertabelle!N$2:N$126,($A20+1),FALSE)) -> 0 | T76: =(HLOOKUP(Futterwertabelle!O$2,Futterwertabelle!O$2:O$126,($A20+1),FALSE)) -> 0 | U76: =(HLOOKUP(Futterwertabelle!P$2,Futterwertabelle!P$2:P$126,($A20+1),FALSE)) -> 0 | V76: =(HLOOKUP(Futterwertabelle!Q$2,Futterwertabelle!Q$2:Q$126,($A20+1),FALSE)) -> 0 | W76: =(HLOOKUP(Futterwertabelle!R$2,Futterwertabelle!R$2:R$126,($A20+1),FALSE)) -> 0 | X76: =(HLOOKUP(Futterwertabelle!S$2,Futterwertabelle!S$2:S$126,($A20+1),FALSE)) -> 0
D77: =HLOOKUP(Futterwertabelle!C$2,Futterwertabelle!C$2:C$126,($A21+1),FALSE) -> 0 | E77: =HLOOKUP(Futterwertabelle!B$2,Futterwertabelle!B$2:B$126,($A21+1),FALSE) -> 0 | F77: =(HLOOKUP(Futterwertabelle!D$2,Futterwertabelle!D$2:D$126,($A21+1),FALSE)) -> 0 | J77: =(HLOOKUP(Futterwertabelle!E$2,Futterwertabelle!E$2:E$126,($A21+1),FALSE)) -> 0 | K77: =(HLOOKUP(Futterwertabelle!F$2,Futterwertabelle!F$2:F$126,($A21+1),FALSE)) -> 0 | L77: =(HLOOKUP(Futterwertabelle!G$2,Futterwertabelle!G$2:G$126,($A21+1),FALSE)) -> 0 | M77: =(HLOOKUP(Futterwertabelle!H$2,Futterwertabelle!H$2:H$126,($A21+1),FALSE)) -> 0 | N77: =(HLOOKUP(Futterwertabelle!I$2,Futterwertabelle!I$2:I$126,($A21+1),FALSE)) -> 0 | O77: =(HLOOKUP(Futterwertabelle!J$2,Futterwertabelle!J$2:J$126,($A21+1),FALSE)) -> 0 | P77: =(HLOOKUP(Futterwertabelle!K$2,Futterwertabelle!K$2:K$126,($A21+1),FALSE)) -> 0 | Q77: =(HLOOKUP(Futterwertabelle!L$2,Futterwertabelle!L$2:L$126,($A21+1),FALSE)) -> 0 | R77: =(HLOOKUP(Futterwertabelle!M$2,Futterwertabelle!M$2:M$126,($A21+1),FALSE)) -> 0 | S77: =(HLOOKUP(Futterwertabelle!N$2,Futterwertabelle!N$2:N$126,($A21+1),FALSE)) -> 0 | T77: =(HLOOKUP(Futterwertabelle!O$2,Futterwertabelle!O$2:O$126,($A21+1),FALSE)) -> 0 | U77: =(HLOOKUP(Futterwertabelle!P$2,Futterwertabelle!P$2:P$126,($A21+1),FALSE)) -> 0 | V77: =(HLOOKUP(Futterwertabelle!Q$2,Futterwertabelle!Q$2:Q$126,($A21+1),FALSE)) -> 0 | W77: =(HLOOKUP(Futterwertabelle!R$2,Futterwertabelle!R$2:R$126,($A21+1),FALSE)) -> 0 | X77: =(HLOOKUP(Futterwertabelle!S$2,Futterwertabelle!S$2:S$126,($A21+1),FALSE)) -> 0
D78: =HLOOKUP(Futterwertabelle!C$2,Futterwertabelle!C$2:C$126,($A22+1),FALSE) -> 0 | E78: =HLOOKUP(Futterwertabelle!B$2,Futterwertabelle!B$2:B$126,($A22+1),FALSE) -> 0 | F78: =(HLOOKUP(Futterwertabelle!D$2,Futterwertabelle!D$2:D$126,($A22+1),FALSE)) -> 0 | J78: =(HLOOKUP(Futterwertabelle!E$2,Futterwertabelle!E$2:E$126,($A22+1),FALSE)) -> 0 | K78: =(HLOOKUP(Futterwertabelle!F$2,Futterwertabelle!F$2:F$126,($A22+1),FALSE)) -> 0 | L78: =(HLOOKUP(Futterwertabelle!G$2,Futterwertabelle!G$2:G$126,($A22+1),FALSE)) -> 0 | M78: =(HLOOKUP(Futterwertabelle!H$2,Futterwertabelle!H$2:H$126,($A22+1),FALSE)) -> 0 | N78: =(HLOOKUP(Futterwertabelle!I$2,Futterwertabelle!I$2:I$126,($A22+1),FALSE)) -> 0 | O78: =(HLOOKUP(Futterwertabelle!J$2,Futterwertabelle!J$2:J$126,($A22+1),FALSE)) -> 0 | P78: =(HLOOKUP(Futterwertabelle!K$2,Futterwertabelle!K$2:K$126,($A22+1),FALSE)) -> 0 | Q78: =(HLOOKUP(Futterwertabelle!L$2,Futterwertabelle!L$2:L$126,($A22+1),FALSE)) -> 0 | R78: =(HLOOKUP(Futterwertabelle!M$2,Futterwertabelle!M$2:M$126,($A22+1),FALSE)) -> 0 | S78: =(HLOOKUP(Futterwertabelle!N$2,Futterwertabelle!N$2:N$126,($A22+1),FALSE)) -> 0 | T78: =(HLOOKUP(Futterwertabelle!O$2,Futterwertabelle!O$2:O$126,($A22+1),FALSE)) -> 0 | U78: =(HLOOKUP(Futterwertabelle!P$2,Futterwertabelle!P$2:P$126,($A22+1),FALSE)) -> 0 | V78: =(HLOOKUP(Futterwertabelle!Q$2,Futterwertabelle!Q$2:Q$126,($A22+1),FALSE)) -> 0 | W78: =(HLOOKUP(Futterwertabelle!R$2,Futterwertabelle!R$2:R$126,($A22+1),FALSE)) -> 0 | X78: =(HLOOKUP(Futterwertabelle!S$2,Futterwertabelle!S$2:S$126,($A22+1),FALSE)) -> 0
D80: =SUM(D35:D52) -> 0 | E80: =SUM(E35:E52) -> 0 | F80: =SUM(F35:F52) -> 0 | J80: =SUM(J35:J52) -> 0 | K80: 0 | L80: 0 | M80: 0 | N80: 0 | O80: 0 | P80: 0 | Q80: 0 | R80: 0 | S80: 0 | T80: 0 | U80: 0 | V80: 0 | W80: 0 | X80: 0
D81: =(D80)/B23 ->  | E81: =E80/B23 ->  | F81: =F80/$B$23 ->  | J81: =J80/$B$23 ->  | K81: =K80/$B$23 -> 
D82: =D80/($B$23*1000) ->  | E82: =E80/($B$23) ->  | F82: =F80/($B$23*1000) ->  | J82: =J80/($B$23*1000) ->  | U82: =U81 ->  | V82: =V81 ->  | W82: =W81 ->  | X82: =X81 -> 
D83: 0.88 | E83: =E82/$D$82*$D$83 ->  | F83: =F82/$D$82*$D$83 -> 
E84: =HLOOKUP(Bedarf!B12,Bedarf!B12:B31,($D2+2),FALSE) -> 10.6 | J84: =HLOOKUP(Bedarf!D12,Bedarf!D12:D31,($D2+2),FALSE) -> 0.15 | M84: =HLOOKUP(Bedarf!P$12,Bedarf!P$12:P$31,($D$2+2),FALSE) -> 0.03 | N84: =HLOOKUP(Bedarf!R$12,Bedarf!R$12:R$31,($D$2+2),FALSE) -> 0.005 | O84: =HLOOKUP(Bedarf!T$12,Bedarf!T$12:T$31,($D$2+2),FALSE) -> 0.0012 | P84: =HLOOKUP(Bedarf!F$12,Bedarf!F$12:F$31,($D$2+2),FALSE) -> 0.0032 | Q84: =HLOOKUP(Bedarf!H$12,Bedarf!H$12:H$31,($D$2+2),FALSE) -> 0.006 | R84: =HLOOKUP(Bedarf!J$12,Bedarf!J$12:J$31,($D$2+2),FALSE) -> 0.0065 | S84: =HLOOKUP(Bedarf!L$12,Bedarf!L$12:L$31,($D$2+2),FALSE) -> 0.0043 | T84: =HLOOKUP(Bedarf!N12,Bedarf!N$12:N$31,($D$2+2),FALSE) -> 0.0014 | U84: =HLOOKUP(Bedarf!V$12,Bedarf!V$12:V$31,($D$2+2),FALSE) -> 17600 | V84: =HLOOKUP(Bedarf!X$12,Bedarf!X$12:X$31,($D$2+2),FALSE) -> 2500 | W84: =HLOOKUP(Bedarf!Z$12,Bedarf!Z$12:Z$31,($D$2+2),FALSE) -> 80
E85: =HLOOKUP(Bedarf!C12,Bedarf!C12:C31,($D2+2),FALSE) -> 11.2 | J85: =HLOOKUP(Bedarf!E12,Bedarf!E12:E31,($D2+2),FALSE) -> 0.165 | M85: =HLOOKUP(Bedarf!Q$12,Bedarf!Q$12:Q$31,($D$2+2),FALSE) -> 0.035 | N85: =HLOOKUP(Bedarf!S$12,Bedarf!S$12:S$31,($D$2+2),FALSE) -> 0.008 | O85: =HLOOKUP(Bedarf!U$12,Bedarf!U$12:U$31,($D$2+2),FALSE) -> 0.0025 | P85: =HLOOKUP(Bedarf!G$12,Bedarf!G$12:G$31,($D$2+2),FALSE) -> 0.0035 | Q85: =HLOOKUP(Bedarf!I$12,Bedarf!I$12:I$31,($D$2+2),FALSE) -> 0.0065 | R85: =HLOOKUP(Bedarf!K$12,Bedarf!K$12:K$31,($D$2+2),FALSE) -> 0.0073 | S85: =HLOOKUP(Bedarf!M$12,Bedarf!M$12:M$31,($D$2+2),FALSE) -> 0.0052 | T85: =HLOOKUP(Bedarf!O$12,Bedarf!O$12:O$31,($D$2+2),FALSE) -> 0.0019 | U85: =HLOOKUP(Bedarf!W$12,Bedarf!W$12:W$31,($D$2+2),FALSE) -> 18000 | V85: =HLOOKUP(Bedarf!Y$12,Bedarf!Y$12:Y$31,($D$2+2),FALSE) -> 2700 | W85: =HLOOKUP(Bedarf!AA$12,Bedarf!AA$12:AA$31,($D$2+2),FALSE) -> 80

Sheet Bedarf
A11: Bezeichnung | B11: MJ ME (Gefl.) | D11: Rohprotein (XP) | F11: Methionin | H11: Met.+Cystein | J11: Lysin | K11: Lysin | L11: Threonin | N11: Tryptophan | P11: Ca | R11: Phosphor | T11: Natrium | V11: Vitamin A IE/kg | X11: Vitamin D3 IE/kg | Z11: Vitamin E mg/kg
B12: MJ ME | C12: MJ ME | D12: XP | E12: XP | F12: Met | G12: Met | H12: Met+Cys | I12: Met+Cys | J12: Lysin | K12: Lysin | L12: Thr | M12: Thr | N12: Trp | O12: Trp | P12: Ca | Q12: Ca | R12: P | S12: P | T12: Na | U12: Na | V12: Vit A IE/kg | W12: Vit A IE/kg | X12: Vit D3 IE/kg | Y12: Vit D3 IE/kg | Z12: Vit E mg/kg | AA12: Vit E mg/kg
B13: von | C13: bis | D13: von | E13: bis | F13: von | G13: bis | H13: von | I13: bis | J13: von | K13: bis | L13: von | M13: bis | N13: von | O13: bis | P13: von | Q13: bis | R13: von | S13: bis | T13: von | U13: bis | V13: von | W13: bis | X13: von | Y13: bis | Z13: von | AA13: bis
A14: Legehennen I | B14: 10.6 | C14: =B14 -> 10.6 | D14: 0.165 | E14: =D14 -> 0.165 | F14: 0.0028 | G14: =F14 -> 0.0028 | H14: =(J14/100)*87 -> 0.004872 | I14: =H14 -> 0.004872 | J14: =F14*2 -> 0.0056 | K14: =J14 -> 0.0056 | P14: 0.035 | Q14: =P14 -> 0.035 | R14: 0.0065 | S14: =R14 -> 0.0065 | T14: 0.0018 | U14: =T14 -> 0.0018 | V14: 6000 | W14: =V14 -> 6000 | X14: 750 | Y14: =X14 -> 750 | Z14: 10 | AA14: =Z14 -> 10
A15: Legehennen II | B15: 10 | C15: 10 | D15: 0.16 | E15: 0.16 | F15: 0.0025 | G15: 0.0025 | H15: =(J15/100)*87 -> 0.00435 | I15: 0.00435 | J15: =F15*2 -> 0.005 | K15: 0.005 | P15: 0.04 | Q15: 0.04 | R15: 0.0053 | S15: 0.0053 | T15: 0.0018 | U15: 0.0018 | V15: 6000 | W15: 6000 | X15: 750 | Y15: 750 | Z15: 10 | AA15: 10
A16: Hühnerküken (1.+2.Woche) | B16: 11.4 | C16: 11.4 | D16: 0.22 | E16: 0.22 | F16: 0.0045 | G16: 0.0045 | H16: 0.0085 | I16: 0.0085 | J16: 0.011 | K16: 0.011 | L16: 0.0063 | M16: =L16 -> 0.0063 | N16: 0.0016 | O16: =N16 -> 0.0016 | P16: 0.009 | Q16: 0.012 | R16: 0.007 | S16: 0.007 | T16: 0.0012 | U16: 0.0025 | V16: 13400 | W16: 13400 | X16: 750 | Y16: 750 | Z16: 60 | AA16: 60
A17: Hühnerküken | B17: 11 | C17: 11 | D17: 0.17 | E17: 0.17 | F17: 0.0035 | G17: 0.0035 | H17: =(J17/100)*87 -> 0.00609 | I17: 0.00609 | J17: =F17*2 -> 0.007 | K17: 0.007 | L17: 0.0063 | M17: 0.0063 | N17: 0.0012 | O17: =N17 -> 0.0012 | P17: 0.007 | Q17: 0.012 | R17: 0.0065 | S17: 0.0065 | T17: 0.001 | U17: 0.0025 | V17: 4000 | W17: 4000 | X17: 500 | Y17: 500 | Z17: 10 | AA17: 10
A18: Junghennen | B18: 10.6 | C18: 10.6 | D18: 0.15 | E18: 0.15 | F18: 0.003 | G18: 0.003 | H18: 0.006 | I18: 0.006 | J18: 0.0065 | K18: 0.0065 | L18: 0.0032 | M18: 0.0032 | N18: 0.001 | O18: 0.001 | P18: 0.0055 | Q18: 0.012 | R18: 0.0055 | S18: 0.0055 | T18: 0.001 | U18: 0.0025 | V18: 4000 | W18: 4000 | X18: 500 | Y18: 500 | Z18: 10 | AA18: 10
A19: Legehennen | B19: 10.6 | C19: 10.6 | D19: 0.15 | E19: 0.15 | F19: 0.003 | G19: 0.003 | H19: 0.0058 | J19: 0.0063 | L19: 0.0045 | N19: 0.0015
A20: Zuchthennen | B20: 10.6 | C20: 10.6 | D20: 0.15 | E20: 0.15 | F20: 0.003 | G20: 0.003 | H20: 0.006 | I20: 0.006 | J20: 0.0065 | K20: 0.0065 | L20: 0.0043 | M20: 0.0043 | N20: 0.0014 | O20: 0.0014 | P20: 0.023 | Q20: 0.04 | R20: 0.005 | S20: 0.008 | T20: 0.0012 | U20: 0.0025 | V20: 8000 | W20: 8000 | X20: 1000 | Y20: 1000 | Z20: 20 | AA20: 20
A21: Küken 1-6 Wk | B21: 11 | C21: 11 | F21: 0.0036 | G21: 0.0036 | H21: 0.0066 | I21: 0.0066 | J21: 0.0082 | K21: 0.0082 | L21: 0.0063 | M21: =L21 -> 0.0063 | N21: 0.0016 | O21: =N21 -> 0.0016
A22: Küken 7-12 Wk | B22: 10.6 | C22: 10.6 | F22: 0.0031 | G22: 0.0031 | H22: 0.0054 | I22: 0.0054 | J22: 0.0064 | K22: 0.0064 | L22: 0.0051 | M22: =L22 -> 0.0051 | N22: 0.0012 | O22: =N22 -> 0.0012
A23: Junghennen 13-18 Wk | B23: 10.6 | C23: 10.6 | F23: 0.0024 | G23: 0.0024 | H23: 0.0046 | I23: 0.0046 | J23: 0.0058 | K23: 0.0058 | L23: 0.0032 | M23: 0.0032 | N23: 0.001 | O23: 0.001
A24: Masthühnerküken I | B24: 12 | C24: 12 | D24: 0.22 | E24: 0.22 | F24: 0.0045 | G24: 0.0045 | H24: =(J24/100)*87 -> 0.00783 | I24: 0.00783 | J24: =F24*2 -> 0.009 | K24: 0.009 | P24: 0.01 | Q24: 0.01 | R24: 0.006 | S24: 0.006 | T24: 0.0018 | U24: 0.0018 | V24: 6000 | W24: 6000 | X24: 750 | Y24: 750
A25: Masthühnerküken II | B25: 12 | C25: 12 | D25: 0.18 | E25: 0.18 | F25: 0.0036 | G25: 0.0036 | H25: =(J25/100)*87 -> 0.006264 | I25: 0.006264 | J25: =F25*2 -> 0.0072 | K25: 0.0072 | P25: 0.01 | Q25: 0.01 | R25: 0.006 | S25: 0.006 | T25: 0.0018 | U25: 0.0018 | V25: 6000 | W25: 6000 | X25: 750 | Y25: 750
A26: Putenküken (1.-8.Woche) | B26: 12 | C26: 12 | D26: 0.28 | E26: 0.28 | F26: 0.0055 | G26: 0.0055 | H26: =(J26/100)*87 -> 0.00957 | I26: 0.00957 | J26: =F26*2 -> 0.011 | K26: 0.011 | P26: 0.015 | Q26: 0.015 | R26: 0.008 | S26: 0.008 | T26: 0.0012 | U26: 0.0012 | V26: 10000 | W26: 10000 | X26: 2000 | Y26: 2000 | Z26: 15 | AA26: 15
A27: Legehennenfutter | B27: 10.9 | C27: 11.2 | D27: 0.165 | E27: 0.168 | F27: 0.0035 | G27: 0.0038 | H27: 0.0061 | I27: 0.007 | J27: 0.0065 | K27: 0.0085 | L27: 0.0043 | M27: 0.0065 | N27: 0.0014 | O27: 0.0035 | P27: 0.036 | Q27: 0.038 | R27: 0.005 | S27: 0.008 | T27: 0.0012 | U27: 0.0025 | V27: 17600 | W27: 18000 | X27: 2500 | Y27: 2700 | Z27: 80 | AA27: 80
A28: Zuchthennenfutter | B28: 10.6 | C28: 11.2 | D28: 0.15 | E28: 0.165 | F28: 0.0032 | G28: 0.0035 | H28: 0.006 | I28: 0.0065 | J28: 0.0065 | K28: 0.0073 | L28: 0.0043 | M28: 0.0052 | N28: 0.0014 | O28: 0.0019 | P28: 0.03 | Q28: 0.035 | R28: 0.005 | S28: 0.008 | T28: 0.0012 | U28: 0.0025 | V28: 17600 | W28: 18000 | X28: 2500 | Y28: 2700 | Z28: 80 | AA28: 80
A37: Legehennen | B37: =((480+Bedarf!B10+(15-Bedarf!B4)*7)*I4+9.6*J4+23*Bedarf!B8)/1000 -> 0 | C37: =3.1*I4+0.17*Bedarf!B8+0.25*Bedarf!J4 -> 0 | D37: =G34*Bedarf!$B$5+(G32/G33)*$J$4 ->  | E37: =H34*Bedarf!$B$5+(H32/H33)*$J$4 ->  | F37: =I34*Bedarf!$B$5+(I32/I33)*$J$4 ->  | G37: =J34*Bedarf!$B$5+(J32/J33)*$J$4 ->  | H37: =(0.1*Bedarf!$B$5+10*Bedarf!$B$8/1000+Bedarf!$J$4/1000*33)/0.55 -> 0 | I37: =(0.083*Bedarf!$B$5+5.5*Bedarf!$B$8/1000+Bedarf!$J$4/1000*1.7)/0.7 -> 0 | J37: =(0.013*Bedarf!$B$5+1.3*Bedarf!$B$8/1000+Bedarf!$J$4/1000*1.2)/0.8 -> 0 | K37: 4500 | L37: 450 | M37: 6
B38: =B37*$K$5 -> 0 | C38: 0 | H38: 0 | I38: 0 | J38: 0 | K38: 0 | L38: 0 | M38: 0
C39: =C37/$B$37 ->  | D39: =D37/$B$37/1000 ->  | E39: =E37/$B$37/1000 ->  | F39: =F37/$B$37/1000 ->  | G39: =G37/$B$37/1000 ->  | H39: =H37/$B$37 ->  | I39: =I37/$B$37 ->  | J39: =J37/$B$37 -> 

Sheet Futterwertabelle
A2: Futtermittel | B2: Energie MJ ME je kg | C2: Trockensubstanz | D2: Rohasche | E2: Rohprotein | F2: Rohfett | G2: Rohfaser | H2: Ca | I2: P | J2: Na | K2: Methionin | L2: M+C | M2: Lysin | N2: Thr | O2: Try | P2: Vit. A | Q2: Vit. D3 | R2: Vit. E | S2: Preis €/kg | T2: Maximalgehalt | U2: Küken
A3: < bitte wählen >
A4: Ackerbohne | B4: 10.2 | C4: 870 | D4: 33 | E4: 259.99 | F4: 14 | G4: 78 | H4: 1.4 | I4: 4.2 | J4: 0.2 | K4: 1.8 | L4: 5.3 | M4: 16.7 | N4: 9.1 | O4: 2.3 | S4: 0.6 | T4: 0.05 | U4: )* 15% Küken
A5: Backabfälle (Keks) | B5: 16 | C5: 920 | D5: 20 | E5: 106 | F5: 127 | G5: 16 | H5: 0.1 | I5: 2.3 | J5: 10 | K5: 1.7 | L5: 3.8 | M5: 2.7 | N5: 3.1 | O5: 1.1 | T5: 0.05
A6: Baumwollextraktionsschrot | B6: 6.57 | C6: 900 | D6: 60.3 | E6: 402 | F6: 15 | G6: 133 | H6: 2.1 | I6: 10.8 | J6: 0.45 | K6: 6.42 | L6: 13.22 | M6: 16.46 | N6: 12.84 | O6: 4.82 | T6: 0 | U6: )* 3% Küken
A7: Bierhefe (getrocknet) | B7: 12.4 | C7: 930 | D7: 30 | E7: 470 | F7: 26 | G7: 2 | H7: 4 | I7: 11 | J7: 2 | K7: 8 | L7: 12.87 | M7: 30 | N7: 14 | O7: 5.22 | S7: 1.205 | T7: 0.08 | U7: Futterhefe
A8: Blutmehl | B8: 13.08 | C8: 920 | D8: 39 | E8: 890 | F8: 9 | G8: 11 | H8: 1.3 | I8: 1.6 | J8: 6.6 | K8: 9.2 | L8: 21.7 | M8: 79.6 | N8: 38.5 | O8: 14.2 | T8: 0.05
A9: Brotabfälle | B9: 9.1 | C9: 630 | D9: 16 | E9: 72 | F9: 20 | G9: 8 | H9: 0.6 | I9: 1.6 | J9: 6 | K9: 0.8 | L9: 1.7 | M9: 2.2 | N9: 2.1 | O9: 0.6 | T9: 0.05
A10: Bruchreis (Reis) | B10: 14.7 | C10: 870 | D10: 6.9 | E10: 77 | F10: 8.7 | G10: 2.8 | H10: 0.5 | I10: 2.1 | J10: 0.09 | K10: 2.11 | L10: 3.91 | M10: 2.52 | N10: 2.54 | O10: 0.96 | S10: 0.942 | T10: 0.3
A11: Citronensäure | B11: 0 | C11: 900 | D11: 800 | E11: 0 | F11: 0 | G11: 0 | H11: 0 | I11: 0 | J11: 0 | K11: 0 | L11: 0 | M11: 0 | N11: 0 | O11: 0 | T11: *
A12: Dicalciumphosphat | B12: 0 | C12: 959 | D12: 818 | E12: 0 | F12: 0 | G12: 0 | H12: 249.8 | I12: 185.7 | J12: 0.68 | K12: 0 | L12: 0 | M12: 0 | N12: 0 | O12: 0 | T12: *
A13: Dinkel (Korn) | B13: 12.7 | C13: 870 | D13: 26 | E13: 118 | F13: 17.2 | G13: 123.6 | H13: 0.5 | I13: 3.7 | J13: 0.02 | K13: 1.75 | L13: 4.65 | M13: 3.23 | N13: 3.45 | O13: 1.08 | T13: 0.15 | U13: )* 5-10% Küken
A14: Dinkelspelzen | B14: 1 | C14: 900 | D14: 54.9 | E14: 30.4 | F14: 10.2 | G14: 416.9 | H14: 0.7 | I14: 2 | J14: 0.03 | K14: 0.49 | L14: 1.24 | M14: 1.27 | N14: 1.14 | O14: 0.25 | T14: 0.05
A15: Erbse | B15: 11.4 | C15: 870 | D15: 33 | E15: 209 | F15: 13 | G15: 59 | H15: 0.8 | I15: 4.2 | J15: 0.2 | K15: 2 | L15: 5.2 | M15: 15 | N15: 7.8 | O15: 2 | S15: 0.28 | T15: 0.2 | U15: )* 30% Weißblühende Sorten
A16: Erdnussextraktionsschrot | B16: 9.81 | C16: 890 | D16: 54.3 | E16: 510 | F16: 16.9 | G16: 65.9 | H16: 1.3 | I16: 6.4 | J16: 0.36 | K16: 5.18 | L16: 12.76 | M16: 16.95 | N16: 13.66 | O16: 4.97 | T16: 0
A17: Erdnusskuchen | B17: 11.72 | C17: 920 | D17: 43.1 | E17: 508.1 | F17: 71.8 | G17: 60.4 | H17: 1.4 | I17: 6.1 | J17: 0.09 | K17: 5.17 | L17: 12.72 | M17: 16.89 | N17: 13.61 | O17: 4.96 | T17: 0.1 | U17: )* 5% Küken
A18: Federmehl (hydrolysiert) | B18: 12.9 | C18: 930 | D18: 20.9 | E18: 806.5 | F18: 70.7 | G18: 8.9 | H18: 5 | I18: 3.4 | J18: 1 | K18: 8.97 | L18: 56.67 | M18: 18.41 | N18: 38.16 | O18: 5.5 | T18: 0.03
A19: Fischmehl 64%Rp | B19: 13.26 | C19: 920 | D19: 179 | E19: 634.8 | F19: 94.8 | G19: 4.6 | H19: 28.9 | I19: 22.5 | J19: 11.59 | K19: 18.58 | L19: 24.56 | M19: 46.44 | N19: 26.45 | O19: 6.06 | S19: 2.28 | T19: 0.08
A20: Fischmehl 70%RP | B20: 14.27 | C20: 920 | D20: 124.6 | E20: 705 | F20: 99.9 | G20: 2.5 | H20: 20.5 | I20: 20 | J20: 8.41 | K20: 20.64 | L20: 27.24 | M20: 51.6 | N20: 29.39 | O20: 6.74 | T20: 0.08
A21: Fleischknochenmehl | B21: 7.78 | C21: 950 | D21: 414 | E21: 433.3 | F21: 88.5 | G21: 5.2 | H21: 149.2 | I21: 71.7 | J21: 6.08 | K21: 6.84 | L21: 7.67 | M21: 21.56 | N21: 15.79 | O21: 3.31 | T21: 0.03
A22: Fleischmehl | B22: 13.47 | C22: 950 | D22: 149.3 | E22: 614.7 | F22: 113.1 | G22: 26.3 | H22: 39.9 | I22: 21.4 | J22: 7.32 | K22: 9.71 | L22: 10.88 | M22: 30.59 | N22: 22.39 | O22: 4.69 | T22: 0.05
A23: Gehaltsrüben | B23: 1.3 | C23: 150 | D23: 15 | E23: 13 | F23: 1 | G23: 10 | H23: 0.4 | I23: 0.4 | J23: 0.6 | K23: 0.4 | L23: 0.5 | M23: 0.4 | N23: 0.3 | O23: 0.1 | T23: 0.1 | U23: )* 0% Küken
A24: Gerste | B24: 11.4 | C24: 870 | D24: 24 | E24: 106 | F24: 20 | G24: 50 | H24: 0.6 | I24: 3.6 | J24: 0.7 | K24: 2 | L24: 4.2 | M24: 3.8 | N24: 3.6 | O24: 1.3 | S24: 0.2 | T24: 0.4 | U24: )* 10% Küken
A25: Getreideschlempe | B25: 12 | C25: 920 | D25: 53.7 | E25: 351.5 | F25: 45.7 | G25: 66.3 | H25: 1 | I25: 8.6 | J25: 4.69 | K25: 5.64 | L25: 11.74 | M25: 6.37 | N25: 10.08 | O25: 3.56 | T25: 0.15 | U25: )* 5% Küken
A26: Grasmehl | B26: 5.14 | C26: 900 | D26: 114 | E26: 179.6 | F26: 30.3 | G26: 183.6 | H26: 8.3 | I26: 3.4 | J26: 0.18 | K26: 2.86 | L26: 5.12 | M26: 7.13 | N26: 7.14 | O26: 2.9 | T26: 0.05 | U26: )* 10% Junghennen
A27: Grünfutter 20%Rfa | B27: 0.7 | C27: 160 | D27: 16 | E27: 30 | F27: 6 | G27: 32 | H27: 1.1 | I27: 0.6 | J27: 0.1 | K27: 0.6 | L27: 1.1 | M27: 1.5 | N27: 1.2 | O27: 0.4 | T27: 0.05 | U27: )* 10% Junghennen
A28: Hafer | B28: 10.46 | C28: 870 | D28: 25.6 | E28: 103.9 | F28: 45 | G28: 98 | H28: 1 | I28: 3 | J28: 0.3 | K28: 1.8 | L28: 4.9 | M28: 4.6 | N28: 3.7 | O28: 1.3 | S28: 0.2625 | T28: 0.2 | U28: )* 10% Küken 20% Junghennen
A29: Haferflocken | B29: 14.01 | C29: 890 | D29: 19.2 | E29: 134.7 | F29: 62.8 | G29: 12.6 | H29: 0.5 | I29: 4.6 | J29: 0.03 | K29: 2.05 | L29: 6.44 | M29: 5.31 | N29: 4.57 | O29: 1.59 | S29: =15.5/25 -> 0.62 | T29: 0 | U29: )* Energie
A30: Haferfuttermehl | B30: 13.3 | C30: 910 | D30: 24 | E30: 138 | F30: 73 | G30: 54 | H30: 1 | I30: 5.2 | J30: 0.1 | K30: 1 | L30: 4.6 | M30: 5.8 | N30: 4.5 | O30: 2.1 | T30: 0.1 | U30: )* 0% Küken
A31: Haferschälkleie | B31: 4.7 | C31: 910 | D31: 53 | E31: 68 | F31: 30 | G31: 230 | H31: 0.8 | I31: 2 | J31: 0.2 | K31: 0.4 | L31: 2.3 | M31: 2.7 | N31: 2.5 | O31: 1 | T31: 0.05 | U31: )* 0% Küken
A32: Heu | B32: 2.4 | C32: 860 | D32: 80 | E32: 100 | F32: 24 | G32: 280 | H32: 7 | I32: 2.5 | J32: 0.2 | K32: 1.4 | L32: 2.5 | M32: 4 | N32: 4.4 | O32: 0 | T32: 0
A33: Kalkgrit (Perlkalk) | B33: 0 | C33: 1000 | D33: 1000 | E33: 0 | F33: 0 | G33: 0 | H33: 360 | I33: 0 | J33: 0 | K33: 0 | L33: 0 | M33: 0 | N33: 0 | O33: 0 | S33: 0.28 | T33: *
A34: Karotten | B34: 1.5 | C34: 120 | D34: 12.1 | E34: 11.5 | F34: 1.8 | G34: 10.9 | H34: 0.4 | I34: 0.4 | J34: 0.42 | K34: 0.18 | L34: 0.36 | M34: 0.84 | N34: 0.44 | O34: 0.1 | S34: =5.5/25 -> 0.22 | T34: 0
A35: Karottenmehl (trocken) | B35: 12 | C35: 960 | D35: 96 | E35: 96 | F35: 14.4 | G35: 87.2 | H35: 3.2 | I35: 3.2 | J35: 3.36 | K35: 1.44 | L35: 2.88 | M35: 6.72 | N35: 3.52 | O35: 0.8 | S35: =55/25 -> 2.2 | T35: 0
A36: Kartoffelabfälle(Pommes) | B36: 0.2 | C36: 129 | D36: 9 | E36: 14 | F36: 0 | G36: 4 | H36: 0 | I36: 0 | J36: 0 | K36: 0.24 | L36: 0 | M36: 0 | N36: 0 | O36: 0
A37: Kartoffeleiweiß | B37: 12.1 | C37: 910 | D37: 29 | E37: 740 | F37: 15 | G37: 7 | H37: 0.6 | I37: 4.6 | J37: 0 | K37: 17.3 | L37: 29 | M37: 58 | N37: 43 | O37: 10.2 | T37: 0.05
A38: Kartoffelmus | B38: 1.7 | C38: 153.5 | D38: 11 | E38: 21.3 | F38: 1.5 | G38: 10.6 | H38: 0.3 | I38: 0.4 | J38: -1e-30 | K38: 0.29 | L38: 0.6 | M38: 1.2 | N38: -1e-30 | O38: -1e-30
A39: Kartoffeln gedämpft | B39: 3.1 | C39: 220 | D39: 14 | E39: 21 | F39: 1 | G39: 6 | H39: 0.1 | I39: 0.6 | J39: 0.1 | K39: 0.34 | L39: 0.7 | M39: 1.1 | N39: 0.9 | O39: 0.3
A40: Kartoffelpülpe | B40: 0.8 | C40: 100 | D40: 4 | E40: 5 | F40: 0.556 | G40: 20.556 | H40: 0.056 | I40: 0.278 | J40: 0 | K40: 0.1 | L40: 0.167 | M40: 0.278 | N40: 0.222 | O40: 0.056
A41: Kartoffelschalen | B41: 0.2 | C41: 110 | D41: -1e-30 | E41: 12 | F41: -1e-30 | G41: 5 | H41: 0 | I41: 0.3 | J41: 0.1 | K41: 0.25 | L41: 0.4 | M41: 0.6 | N41: 0.5 | O41: 0.2
A42: Kartoffelschnitzel | B42: 12.4 | C42: 880 | D42: 51 | E42: 80 | F42: 2 | G42: 26 | H42: 0.4 | I42: 2.4 | J42: 0.2 | K42: 1.8 | L42: 2.1 | M42: 2.8 | N42: 2.7 | O42: -1e-30
A43: Kartoffelstärke | B43: 13.7 | C43: 830 | D43: 4 | E43: 2 | F43: 0 | G43: 4 | H43: 0 | I43: 0 | J43: 0 | K43: 0 | L43: 0 | M43: 0 | N43: 0 | O43: 0
A44: kohlens.Futterkalk | B44: 0 | C44: 950 | D44: 950 | E44: 0 | F44: 0 | G44: 0 | H44: 380 | I44: 0 | J44: 0 | K44: 0 | L44: 0 | M44: 0 | N44: 0 | O44: 0 | S44: 0.2 | T44: *
A45: Kürbiskernkuchen | B45: 11.6 | C45: 900 | D45: -1e-30 | E45: 583 | F45: 76 | G45: 25 | H45: 0.9 | I45: 21 | J45: 0.3 | K45: 12 | L45: 21 | M45: 24.5 | N45: 18.1 | O45: 5
A46: Lebertran | B46: 38.41 | C46: 999 | D46: 1 | E46: 0 | F46: 998 | G46: 0 | H46: 0 | I46: 0 | J46: 0 | K46: 0 | L46: 0 | M46: 0 | N46: 0 | O46: 0 | P46: 1000000 | Q46: 132000 | R46: 200 | T46: *
A47: Leinextraktionsschrot | B47: 5.82 | C47: 900 | D47: 60.2 | E47: 294.9 | F47: 34.9 | G47: 85.8 | H47: 4.1 | I47: 8.1 | J47: 0.99 | K47: 5.44 | L47: 11.3 | M47: 11.43 | N47: 10.85 | O47: 4.52 | S47: 0.52 | T47: 0.03 | U47: )* 2% Küken
A48: Leinkuchen | B48: 10.6 | C48: 900 | D48: 55 | E48: 303.8 | F48: 97 | G48: 84.7 | H48: 3.9 | I48: 8.3 | J48: 0.46 | K48: 5.61 | L48: 11.41 | M48: 11.77 | N48: 11.18 | O48: 4.66 | S48: 0.52 | T48: 0.03 | U48: )* 2% Küken
A49: Leinsamen | B49: 14.44 | C49: 920 | D49: 37.1 | E49: 207.3 | F49: 396.3 | G49: 75.6 | H49: 2.6 | I49: 5.6 | J49: 0.36 | K49: 4.11 | L49: 8.04 | M49: 8.01 | N49: 7.55 | O49: 3.34 | T49: 0.05
A50: Leinöl | B50: 34.3 | C50: 1000 | D50: 0 | E50: 0 | F50: 1000 | G50: 0 | H50: 0 | I50: 0 | J50: 0 | K50: 0 | L50: 0 | M50: 0 | N50: 0 | O50: 0 | T50: 0.03 | U50: )* 2% Küken
A51: Luzernegrünmehl | B51: 4.2 | C51: 880 | D51: 103 | E51: 170 | F51: 31 | G51: 220 | H51: 8 | I51: 3.4 | J51: 0.5 | K51: 2.2 | L51: 4.3 | M51: 7.4 | N51: 7 | O51: 2.4 | S51: 0.4 | T51: 0.1 | U51: )* 5% Küken
A52: Lysin HCL EURO 80%ig | B52: 14.6 | C52: 1000 | D52: 194 | E52: 944 | F52: 0 | G52: 0 | H52: 0 | I52: 0 | J52: 0 | K52: 0 | L52: 0 | M52: 780.03 | N52: 0 | O52: 0 | T52: *
A53: Magermilch (8,6%TS) | B53: 1 | C53: 86 | D53: 7.167 | E53: 31.354 | F53: 0.448 | G53: 0 | H53: 1.165 | I53: 0.905 | J53: 0.466 | K53: 0.9 | L53: 1.075 | M53: 2.446 | N53: 1.478 | O53: 0.475 | T53: 0
A54: Magermilchpulver | B54: 11.5 | C54: 941 | D54: 80 | E54: 343 | F54: 5 | G54: 0 | H54: 13 | I54: 10.1 | J54: 5.2 | K54: 9.9 | L54: 11.4 | M54: 26.5 | N54: 15.3 | O54: 4.7 | T54: 0.04 | U54: )* 3% Küken
A55: Mais | B55: 13 | C55: 870 | D55: 15 | E55: 78 | F55: 40 | G55: 23 | H55: 0.3 | I55: 3.5 | J55: 0.2 | K55: 1.9 | L55: 3 | M55: 2.2 | N55: 2.7 | O55: 0.5 | S55: 0.26 | T55: 0.5 | U55: )* 40% Küken
A56: Maisfuttermehl | B56: 10.6 | C56: 890 | D56: 27 | E56: 105 | F56: 66 | G56: 53 | H56: 0.7 | I56: 4.4 | J56: 0.5 | K56: 1.3 | L56: 3.4 | M56: 2.4 | N56: 0 | O56: 0.7 | T56: 0.05
A57: Maiskeimex. (Stärkeind.) | B57: 11.4 | C57: 890 | D57: 38 | E57: 230 | F57: 20 | G57: 84 | H57: 0.4 | I57: 6.7 | J57: 0.8 | K57: 4.1 | L57: 9.8 | M57: 9.1 | N57: 9.1 | O57: 2.1 | T57: 0.05
A58: Maiskeimkuchen (Mühle) | B58: 10.8 | C58: 910 | D58: 33 | E58: 121 | F58: 50 | G58: 68 | H58: 0.6 | I58: 6.3 | J58: 0.3 | K58: 2.2 | L58: 4.7 | M58: 5 | N58: 5 | O58: 1.7 | T58: 0.05
A59: Maiskeimkuchen (Stärke) | B59: 11.1 | C59: 920 | D59: 32 | E59: 206 | F59: 57 | G59: 92 | H59: 0.6 | I59: 6.4 | J59: 0.3 | K59: 3 | L59: 7.8 | M59: 8.4 | N59: 7.9 | O59: 2.9 | T59: 0.05
A60: Maiskleber | B60: 13.8 | C60: 900 | D60: 18 | E60: 638 | F60: 46 | G60: 12 | H60: 0.8 | I60: 3.7 | J60: 0.5 | K60: 14.7 | L60: 26.6 | M60: 10.8 | N60: 21.8 | O60: 3.3 | T60: 0.2 | U60: )* 15% Küken
A61: Maiskleberfutter 23% Rp | B61: 8.1 | C61: 890 | D61: 53 | E61: 232 | F61: 36 | G61: 80 | H61: 1.3 | I61: 8.4 | J61: 2.4 | K61: 3.9 | L61: 9.6 | M61: 7 | N61: 8.3 | O61: 1.3 | T61: 0.05 | U61: )* 3% Küken
A62: Maiskolbensilage o. Lieschbl. | B62: 9 | C62: 610 | D62: 9.8 | E62: 57.7 | F62: 28.5 | G62: 20 | H62: 0.1 | I62: 2 | J62: 0.03 | K62: 1.2 | L62: 2.62 | M62: 1.68 | N62: 1.94 | O62: 0.41 | T62: 0.2 | U62: )* 10% Küken
A63: Maniokmehl/-schn. Typ 55 | B63: 11 | C63: 880 | D63: 51 | E63: 23 | F63: 6 | G63: 48 | H63: 1.6 | I63: 0.7 | J63: 0.2 | K63: 0.3 | L63: 0.5 | M63: 1.2 | N63: 0.9 | O63: 0.2 | T63: 0.1
A64: Maniokmehl/-schnitzel | B64: 12 | C64: 880 | D64: 33 | E64: 23 | F64: 5 | G64: 28 | H64: 1.4 | I64: 1 | J64: 0.4 | K64: 0.3 | L64: 0.5 | M64: 1.1 | N64: 0.9 | O64: 0.2 | T64: 0.05
A65: Massenrüben | B65: 1 | C65: 110 | D65: 14 | E65: 10 | F65: 1 | G65: 9 | H65: 0.3 | I65: 0.3 | J65: 0.4 | K65: 0.4 | L65: 0.4 | M65: 0.4 | N65: 0.2 | O65: 0.1 | T65: 0
A66: Melasse | B66: 7.9 | C66: 770 | D66: 73 | E66: 99 | F66: 2 | G66: 4 | H66: 4.2 | I66: 0.2 | J66: 5.6 | K66: 1.6 | L66: 2.9 | M66: 2.5 | N66: 5.1 | O66: 0.8 | T66: 0.02
A67: Methionin DL | B67: 15.2 | C67: 995 | D67: 995 | E67: 980 | F67: 0 | G67: 0 | H67: 0 | I67: 0 | J67: 0 | K67: 980 | L67: 980 | M67: 0 | N67: 0 | O67: 0 | T67: *
A68: Milocorn (Sorghumhirse) | B68: 13.62 | C68: 880 | D68: 15.1 | E68: 80.9 | F68: 29.5 | G68: 17.2 | H68: 0.4 | I68: 3.1 | J68: 0.09 | K68: 1.35 | L68: 2.79 | M68: 2.02 | N68: 2.7 | O68: 0.92 | T68: 0.2 | U68: )* 10% Küken
A69: Molkepulver | B69: 10 | C69: 920 | D69: 100 | E69: 141.54 | F69: 14.153 | G69: 0 | H69: 8.495 | I69: 7.084 | J69: 6.363 | K69: 2.29 | L69: 4.247 | M69: 7.084 | N69: 7.084 | O69: 2.116 | S69: 1.2 | T69: 0
A70: Molkesüßpulver | B70: 11.6 | C70: 960 | D70: 82 | E70: 127 | F70: 11 | G70: 0 | H70: 7.9 | I70: 8.2 | J70: 6.2 | K70: 2.32 | L70: 4.3 | M70: 9.3 | N70: 7.4 | O70: 1.9 | T70: 0
A71: Monocalciumphosphat | B71: 0 | C71: 950 | D71: 950 | E71: 0 | F71: 0 | G71: 0 | H71: 160 | I71: 229 | J71: 0 | K71: 0 | L71: 0 | M71: 0 | N71: 0 | O71: 0 | S71: 1.5 | T71: *
A72: Muschelschalen (Austernsch.) | B72: 0 | C72: 996 | D72: 955.5 | E72: 13 | F72: 0 | G72: 0 | H72: 345.1 | I72: 0.3 | J72: 5.48 | K72: 0 | L72: 0 | M72: 0 | N72: 0 | O72: 0 | T72: *
A73: Natriumbicarbonat | B73: 0 | C73: 1000 | D73: 1000 | E73: 0 | F73: 0 | G73: 0 | H73: 0 | I73: 0 | J73: 270 | K73: 0 | L73: 0 | M73: 0 | N73: 0 | O73: 0 | T73: *
A74: Natriumchlorid (Viehsalz) | B74: 0 | C74: 990 | D74: 990 | E74: 0 | F74: 0 | G74: 0 | H74: 0 | I74: 0 | J74: 386.1 | K74: 0 | L74: 0 | M74: 0 | N74: 0 | O74: 0 | T74: *
A75: Palmöl | B75: 33.42 | C75: 999 | D75: 0 | E75: 0 | F75: 999 | G75: 0 | H75: 0 | I75: 0 | J75: 0 | K75: 0 | L75: 0 | M75: 0 | N75: 0 | O75: 0 | T75: 0.05
A76: Quarzgrit | B76: 0 | C76: 1000 | D76: 1000 | E76: 0 | F76: 0 | G76: 0 | H76: 0 | I76: 0 | J76: 0 | K76: 0 | L76: 0 | M76: 0 | N76: 0 | O76: 0 | T76: *
A77: Raps-Extr.-Schrot (00) | B77: 7.2 | C77: 880 | D77: 70 | E77: 330 | F77: 35 | G77: 120 | H77: 6 | I77: 12 | J77: 0.2 | K77: 7.2 | L77: 15 | M77: 19 | N77: 14.3 | O77: 5 | S77: 0.29 | T77: 10% (0% Braunleger) | U77: )* 15% Küken
A78: Rapskuchen | B78: 9.41 | C78: 910 | D78: 70 | E78: 320.8 | F78: 91.6 | G78: 101.3 | H78: 7.3 | I78: 11.4 | J78: 0.11 | K78: 5.64 | L78: 13.77 | M78: 18.33 | N78: 14.52 | O78: 4.22 | T78: 0.05 | U78: )* 10% Küken
A79: Rapssamen | B79: 20.36 | C79: 950 | D79: 40.9 | E79: 19.6 | F79: 451.7 | G79: 79.6 | H79: 4.62 | I79: 7.27 | J79: 0.1 | K79: 4.26 | L79: 9.57 | M79: 12.27 | N79: 8.44 | O79: 2.73 | T79: 0.05
A80: Rapsöl | B80: 34.2 | C80: 999 | D80: 0 | E80: 0 | F80: 998 | G80: 0 | H80: 0 | I80: 0 | J80: 0 | K80: 0 | L80: 0 | M80: 0 | N80: 0 | O80: 0 | R80: 350 | S80: 0.95 | T80: 0.05
A81: Reis ungeschält | B81: 12.2 | C81: 880 | D81: 57 | E81: 81 | F81: 20 | G81: 95 | H81: 0.5 | I81: 2.4 | J81: 0.3 | K81: 1.7 | L81: 3.2 | M81: 2.9 | N81: 3 | O81: 0.9 | T81: 0.3
A82: Reiskleie-Ricebran | B82: 6.5 | C82: 880 | D82: 0 | E82: 124.08 | F82: 132.88 | G82: 112.64 | H82: 0.8 | I82: 17 | J82: 0.2 | K82: 1.75 | L82: 3.256 | M82: 4.752 | N82: -1e-30 | O82: 0.968
A83: Rispenhirse | B83: 12.62 | C83: 880 | D83: 26.2 | E83: 109.3 | F83: 38.6 | G83: 88.6 | H83: 0.4 | I83: 3.1 | J83: 0.09 | K83: 3.02 | L83: 4.81 | M83: 1.72 | N83: 3.24 | O83: 1.55 | T83: 0.2 | U83: )* 5% Küken
A84: Roggen | B84: 12 | C84: 870 | D84: 19 | E84: 98 | F84: 16 | G84: 24 | H84: 0.8 | I84: 2.9 | J84: 0.2 | K84: 1.9 | L84: 4.3 | M84: 4 | N84: 3.5 | O84: 0.9 | T84: 0.1 | U84: )* 0% Küken
A85: Roggenfuttermehl | B85: 10.3 | C85: 880 | D85: 32 | E85: 148 | F85: 30 | G85: 33 | H85: 1.1 | I85: 8.1 | J85: 0.2 | K85: 2.1 | L85: 4.7 | M85: 5.3 | N85: 5.7 | O85: 0.9 | T85: 0.1 | U85: )* 5% Küken
A86: Roggengrießkleie | B86: 7.6 | C86: 880 | D86: 47 | E86: 144 | F86: 33 | G86: 57 | H86: 1.5 | I86: 9.9 | J86: 0.7 | K86: 2 | L86: 4.6 | M86: 5.2 | N86: 5.6 | O86: 0.9
A87: Roggenkleie | B87: 6.4 | C87: 880 | D87: 53 | E87: 143 | F87: 32 | G87: 73 | H87: 1.5 | I87: 10 | J87: 0.7 | K87: 2 | L87: 3.4 | M87: 6.7 | N87: 6.5 | O87: 1.1 | T87: 0.1 | U87: )* 0% Küken
A88: Sojabohnen (extrudiert) | B88: 14.58 | C88: 950 | D88: 54.2 | E88: 390.1 | F88: 200 | G88: 56.2 | H88: 2.3 | I88: 6.2 | J88: 0.09 | K88: 5.51 | L88: 11.61 | M88: 24.12 | N88: 15.19 | O88: 5.09 | T88: 0.2
A89: Sojaextraktionsschrot 43 | B89: 8.82 | C89: 880 | D89: 65.3 | E89: 432 | F89: 20.3 | G89: 83 | H89: 3.4 | I89: 6.4 | J89: 0.35 | K89: 5.98 | L89: 12.5 | M89: 26.8 | N89: 16.8 | O89: 5.6 | S89: 0.55 | T89: 0.25
A90: Sojaextraktionsschrot 48 HP | B90: 9.44 | C90: 880 | D90: 62.9 | E90: 483.8 | F90: 19.8 | G90: 34.3 | H90: 2.5 | I90: 6.2 | J90: 0.09 | K90: 6.83 | L90: 14.39 | M90: 29.91 | N90: 18.9 | O90: 6.32 | S90: 0.55 | T90: 0.25
A91: Sonnenblumenöl | B91: 34.2 | C91: 999 | D91: 0 | E91: 0 | F91: 998 | G91: 0 | H91: 0 | I91: 0 | J91: 0 | K91: 0 | L91: 0 | M91: 0 | N91: 0 | O91: 0 | R91: 450 | S91: 1.09 | T91: 0.05
A92: Sonnenblumenex. (entschält) | B92: 6.89 | C92: 900 | D92: 70.8 | E92: 384.7 | F92: 23.9 | G92: 136.5 | H92: 3.7 | I92: 10.8 | J92: 0.3 | K92: 8.75 | L92: 15.71 | M92: 14.62 | N92: 13.98 | O92: 5.05 | T92: 0.1 | U92: )* 5% Küken
A93: Sonnenblumenextraktionssch. | B93: 4.6 | C93: 900 | D93: 45 | E93: 229.5 | F93: 13.5 | G93: 333 | H93: 4.3 | I93: 7.7 | J93: 0.27 | K93: 5.22 | L93: 9.37 | M93: 8.72 | N93: 8.34 | O93: 3.01 | T93: 0.1 | U93: )* 5% Küken
A94: Sonnenblumensamen | B94: 13.5 | C94: 880 | D94: -1e-30 | E94: 169 | F94: 316 | G94: 215 | H94: 2.5 | I94: 3.3 | J94: 0.2 | K94: 2.4 | L94: 6.2 | M94: 6.9 | N94: 5.7 | O94: 2 | S94: 0.4 | T94: 0.05 | U94: )* 0% Küken
A95: Stoppelrüben | B95: 0.8 | C95: 110 | D95: 12.1 | E95: 18.3 | F95: 0.9 | G95: 13.2 | H95: 2.1 | I95: 0.6 | J95: 0.3 | K95: 0.18 | L95: 0.44 | M95: 0.61 | N95: 0.52 | O95: 0.15 | T95: 0
A96: Strohmehl (aufgeschlossen) | B96: 5.3 | C96: 900 | D96: 68 | E96: 33.5 | F96: 10.5 | G96: 389.5 | H96: 3.2 | I96: 0.9 | J96: 8.98 | K96: 0.36 | L96: 1 | M96: 1.02 | N96: 1.16 | O96: 0.3 | T96: 0.05 | U96: )* 2% Küken
A97: Süßlupinen | B97: 8.88 | C97: 870 | D97: 34.6 | E97: 344.6 | F97: 81.8 | G97: 110.3 | H97: 2.1 | I97: 4.7 | J97: 0.09 | K97: 2.47 | L97: 7.73 | M97: 15.9 | N97: 12.19 | O97: 2.58 | S97: 0.4 | T97: 0.1 | U97: )* 0% Küken
A98: Threonin | B98: 13.51 | C98: 1000 | D98: 0 | E98: 735 | F98: 0 | G98: 0 | H98: 0 | I98: 0 | J98: 0 | K98: 0 | L98: 0 | M98: 0 | N98: 979.98 | O98: 0 | T98: *
A99: Triticale | B99: 12.7 | C99: 870 | D99: 20 | E99: 120 | F99: 16 | G99: 23 | H99: 0.5 | I99: 3 | J99: 0.2 | K99: 1.6 | L99: 4.9 | M99: 4.2 | N99: 3.9 | O99: 1.2 | S99: 0.19 | T99: 0.3 | U99: )* 10% Küken
A100: Tryptophan | B100: 22.8 | C100: 1000 | D100: 0 | E100: 857 | F100: 0 | G100: 0 | H100: 0 | I100: 0 | J100: 0 | K100: 0 | L100: 0 | M100: 0 | N100: 0 | O100: 979.98 | T100: *
A101: Viehsalz | B101: 0 | C101: 950 | D101: 900 | E101: 0 | F101: 0 | G101: 0 | H101: 0 | I101: 0 | J101: 390 | K101: 0 | L101: 0 | M101: 0 | N101: 0 | O101: 0 | S101: 2 | T101: *
A102: Vollmilch | B102: 2.7 | C102: 135 | D102: 7 | E102: 35 | F102: 44 | G102: 0 | H102: 1.2 | I102: 1 | J102: 0.4 | K102: 0.7 | L102: 1.4 | M102: 2.7 | N102: 1.7 | O102: 0.5 | T102: 0
A103: Vollmilch trocken | B103: 18 | C103: 900 | D103: 46.667 | E103: 233.33 | F103: 293.33 | G103: 0 | H103: 8 | I103: 6.667 | J103: 2.667 | K103: 4.8 | L103: 9.333 | M103: 18 | N103: 11.333 | O103: 3.333 | T103: 0
A104: Weizen | B104: 12.78 | C104: 870 | D104: 17 | E104: 120 | F104: 17 | G104: 25 | H104: 0.6 | I104: 3.3 | J104: 0.1 | K104: 1.8 | L104: 4.6 | M104: 3.4 | N104: 3.5 | O104: 1.6 | S104: 0.21 | T104: o.B. | U104: )* 30% Küken
A105: Weizenkeimkuchen | B105: 8.93 | C105: 940 | D105: 53.6 | E105: 286.7 | F105: 49.8 | G105: 29.1 | H105: 0 | I105: 0 | J105: 0 | K105: 5.05 | L105: 9.6 | M105: 16.55 | N105: 10.29 | O105: 2.94 | T105: 0.05
A106: Weizenflocken | B106: 12.7 | C106: 870 | D106: 17 | E106: 120 | F106: 17 | G106: 25 | H106: 0.6 | I106: 3.3 | J106: 0.1 | K106: 1.2 | L106: 4.6 | M106: 3.4 | N106: 3.5 | O106: 1.6
A107: Weizenfuttermehl | B107: 10.3 | C107: 880 | D107: 38 | E107: 167 | F107: 44 | G107: 46 | H107: 1.1 | I107: 7.1 | J107: 0.3 | K107: 2.7 | L107: 6.2 | M107: 5.9 | N107: 5.3 | O107: 2.1
A108: Weizengrießkleie | B108: 8.2 | C108: 880 | D108: 48 | E108: 155 | F108: 44 | G108: 83 | H108: 1.2 | I108: 9 | J108: 0.5 | K108: 2.6 | L108: 6.2 | M108: 6.8 | N108: 5.7 | O108: 2.3
A109: Weizenkleie | B109: 6.5 | C109: 880 | D109: 57 | E109: 141 | F109: 38 | G109: 118 | H109: 1.6 | I109: 11.4 | J109: 0.5 | K109: 2.1 | L109: 5.3 | M109: 5.8 | N109: 4.7 | O109: 2 | S109: 0.32 | T109: 0.15 | U109: )* 5% Küken
A110: Weizenkleber | B110: 14.3 | C110: 930 | D110: 9.6 | E110: 800.4 | F110: 25 | G110: 3.6 | H110: 1 | I110: 2.5 | J110: 0.1 | K110: 12.29 | L110: 28.73 | M110: 11.99 | N110: 19.39 | O110: 7.25 | S110: 4.05 | T110: 0.1
A111: Weizenkleberfutter | B111: 10.3 | C111: 900 | D111: 51 | E111: 182 | F111: 46 | G111: 73 | H111: 1.3 | I111: 8 | J111: 2.4 | K111: 2.5 | L111: 5.9 | M111: 5.2 | N111: 5.2 | O111: 2.2
A112: Weizennachmehl | B112: 12.4 | C112: 880 | D112: 33 | E112: 170 | F112: 45 | G112: 29 | H112: 0.8 | I112: 6.5 | J112: 0.1 | K112: 2.9 | L112: 6.8 | M112: 6 | N112: 5.6 | O112: 2.2 | T112: 0.15
A113: Weizenschlempe | B113: 8 | C113: 880 | D113: 47 | E113: 330 | F113: 63 | G113: 94 | H113: 3.14 | I113: 4.71 | J113: 0.2 | K113: 4.71 | L113: 9.42 | M113: 9.42 | N113: 11 | O113: 0
A114: Zitrustrester (getrocknet) | B114: 8.9 | C114: 900 | D114: 56.7 | E114: 64.8 | F114: 30.6 | G114: 126 | H114: 17 | I114: 1.2 | J114: 1.41 | K114: 0.65 | L114: 1.49 | M114: 1.68 | N114: 1.88 | O114: 0.52 | T114: 0.03
A115: Krausland Bierhefe | B115: 13.2 | C115: 880 | D115: 70 | E115: 480 | F115: 10 | G115: 11 | H115: 0 | I115: 15 | J115: 0 | K115: 4 | L115: 4 | M115: 0 | N115: 0 | O115: 0 | P115: 0 | Q115: 0 | R115: 0 | S115: 1.84
A116: Krausland Geflügelmineral | B116: 1.3 | C116: 880 | D116: 0 | E116: 85 | F116: 0 | G116: 0 | H116: 168 | I116: 120 | J116: 50 | K116: 60 | L116: 60 | M116: 25 | N116: 0 | O116: 0 | P116: 500000 | Q116: 100000 | R116: 1500 | S116: 2
A117: Krausland Kartoffeleiweiß | B117: 13.2 | C117: 880 | D117: =D37 -> 29 | E117: 765 | F117: =F37 -> 15 | G117: =G37 -> 7 | H117: =H37 -> 0.6 | I117: 2.6 | J117: =J37 -> 0 | K117: 14.8 | L117: =L37 -> 29 | M117: =M37 -> 58 | N117: =N37 -> 43 | O117: =O37 -> 10.2 | P117: 0 | Q117: 0 | R117: 0 | S117: 1.8
A118: Krausland AFA+ | B118: 0 | C118: 983 | D118: 983 | E118: 0 | F118: 0 | G118: 0 | H118: 17 | I118: 0 | J118: 0 | K118: 0 | L118: 0 | M118: 0 | N118: 0 | O118: 0 | P118: 0 | Q118: 0 | R118: 0 | S118: 1.75
A119: Krausland kohles. Kalk | B119: 0 | C119: 970 | D119: 970 | E119: 0 | F119: 0 | G119: 0 | H119: 380 | I119: 0 | J119: 0 | K119: 0 | L119: 0 | M119: 0 | N119: 0 | O119: 0 | P119: 0 | Q119: 0 | R119: 0 | S119: 0.35
A120: Krausland Muschelschrot | B120: 0 | C120: 970 | D120: 970 | E120: 0 | F120: 0 | G120: 0 | H120: 380 | I120: 0 | J120: 0 | K120: 0 | L120: 0 | M120: 0 | N120: 0 | O120: 0 | P120: 0 | Q120: 0 | R120: 0 | S120: 0.35
A121: Krausland Austernschalen | B121: 0 | C121: 970 | D121: 970 | E121: 0 | F121: 0 | G121: 0 | H121: 390 | I121: 0 | J121: 0 | K121: 0 | L121: 0 | M121: 0 | N121: 0 | O121: 0 | P121: 0 | Q121: 0 | R121: 0 | S121: 0.39
A122: EquiOne Schwarzkümmelpellets | B122: 16.2 | C122: 880 | D122: 64 | E122: 329 | F122: 153 | G122: 71 | H122: 0 | I122: 0 | J122: 0 | K122: 0 | L122: 0 | M122: 0 | N122: 0 | O122: 0 | P122: 0 | Q122: 0 | R122: 0 | S122: 0.79
A123: Krausland Vitamine | B123: 0 | C123: 880 | D123: 0 | E123: 0 | F123: 0 | G123: 0 | H123: 0 | I123: 0 | J123: 0 | K123: 0 | L123: 0 | M123: 0 | N123: 0 | O123: 0 | P123: 4200000 | Q123: 0 | R123: 4000 | S123: 9
A124: Blattin Mineralfutter | B124: 2 | C124: 880 | D124: 500 | E124: 85 | F124: 20 | G124: 20 | H124: 210 | I124: 60 | J124: 50 | K124: 1 | L124: 1 | M124: 0 | N124: 0 | O124: 0 | P124: 500000 | Q124: 60000 | R124: 2000 | S124: 1.6
A125: Blattipollo MC Gelb | B125: 2 | C125: 950 | D125: 500 | E125: 170 | F125: 38 | G125: 45 | H125: 170 | I125: 105 | J125: 60 | K125: 45 | L125: 45 | P125: 500000 | Q125: 100000 | R125: 1200 | S125: 1.6 | T125: 0.025
A126: E-Max | B126: 0 | C126: 930 | D126: 930 | E126: 440 | F126: 60 | G126: 250 | H126: 270 | I126: 55 | J126: 55 | K126: 0 | L126: 0 | M126: 45 | N126: 0 | O126: 0 | P126: 0 | Q126: 0 | R126: 120000 | S126: 13.9

Sheet Druckversion
B2: Lege- und Zuchthühner | F2: Lege- und Zuchthühner
B4: Kosten je 50 kg | C4: =Rationsberechnung!M22 ->  | F4: Kosten je 50 kg | G4: =Rationsberechnung!M22 -> 
B6: Futtermittel | C6: Menge | F6: Futtermittel | G6: Menge
B7: =HLOOKUP(Futterwertabelle!A$2,Futterwertabelle!A$2:A$126,Rationsberechnung!A5+1,FALSE) -> Weizen | C7: =(Rationsberechnung!B5/100)*$C$23 -> 0 | F7: =HLOOKUP(Futterwertabelle!A$2,Futterwertabelle!A$2:A$126,Rationsberechnung!A5+1,FALSE) -> Weizen | G7: =(Rationsberechnung!B5/100)*$G$23 -> 0
B8: =HLOOKUP(Futterwertabelle!A$2,Futterwertabelle!A$2:A$126,Rationsberechnung!A6+1,FALSE) -> < bitte wählen > | C8: =(Rationsberechnung!B6/100)*$C$23 -> 0 | F8: =HLOOKUP(Futterwertabelle!A$2,Futterwertabelle!A$2:A$126,Rationsberechnung!A6+1,FALSE) -> < bitte wählen > | G8: =(Rationsberechnung!B6/100)*$G$23 -> 0
B9: =HLOOKUP(Futterwertabelle!A$2,Futterwertabelle!A$2:A$126,Rationsberechnung!A7+1,FALSE) -> < bitte wählen > | C9: =(Rationsberechnung!B7/100)*$C$23 -> 0 | F9: =HLOOKUP(Futterwertabelle!A$2,Futterwertabelle!A$2:A$126,Rationsberechnung!A7+1,FALSE) -> < bitte wählen > | G9: =(Rationsberechnung!B7/100)*$G$23 -> 0
B10: =HLOOKUP(Futterwertabelle!A$2,Futterwertabelle!A$2:A$126,Rationsberechnung!A8+1,FALSE) -> < bitte wählen > | C10: =(Rationsberechnung!B8/100)*$C$23 -> 0 | F10: =HLOOKUP(Futterwertabelle!A$2,Futterwertabelle!A$2:A$126,Rationsberechnung!A8+1,FALSE) -> < bitte wählen > | G10: =(Rationsberechnung!B8/100)*$G$23 -> 0
B11: =HLOOKUP(Futterwertabelle!A$2,Futterwertabelle!A$2:A$126,Rationsberechnung!A9+1,FALSE) -> < bitte wählen > | C11: =(Rationsberechnung!B9/100)*$C$23 -> 0 | F11: =HLOOKUP(Futterwertabelle!A$2,Futterwertabelle!A$2:A$126,Rationsberechnung!A9+1,FALSE) -> < bitte wählen > | G11: =(Rationsberechnung!B9/100)*$G$23 -> 0
B12: =HLOOKUP(Futterwertabelle!A$2,Futterwertabelle!A$2:A$126,Rationsberechnung!A10+1,FALSE) -> < bitte wählen > | C12: =(Rationsberechnung!B10/100)*$C$23 -> 0 | F12: =HLOOKUP(Futterwertabelle!A$2,Futterwertabelle!A$2:A$126,Rationsberechnung!A10+1,FALSE) -> < bitte wählen > | G12: =(Rationsberechnung!B10/100)*$G$23 -> 0
B13: =HLOOKUP(Futterwertabelle!A$2,Futterwertabelle!A$2:A$126,Rationsberechnung!A11+1,FALSE) -> < bitte wählen > | C13: =(Rationsberechnung!B11/100)*$C$23 -> 0 | F13: =HLOOKUP(Futterwertabelle!A$2,Futterwertabelle!A$2:A$126,Rationsberechnung!A11+1,FALSE) -> < bitte wählen > | G13: =(Rationsberechnung!B11/100)*$G$23 -> 0
B14: =HLOOKUP(Futterwertabelle!A$2,Futterwertabelle!A$2:A$126,Rationsberechnung!A12+1,FALSE) -> < bitte wählen > | C14: =(Rationsberechnung!B12/100)*$C$23 -> 0 | F14: =HLOOKUP(Futterwertabelle!A$2,Futterwertabelle!A$2:A$126,Rationsberechnung!A12+1,FALSE) -> < bitte wählen > | G14: =(Rationsberechnung!B12/100)*$G$23 -> 0
B15: =HLOOKUP(Futterwertabelle!A$2,Futterwertabelle!A$2:A$126,Rationsberechnung!A13+1,FALSE) -> < bitte wählen > | C15: =(Rationsberechnung!B13/100)*$C$23 -> 0 | F15: =HLOOKUP(Futterwertabelle!A$2,Futterwertabelle!A$2:A$126,Rationsberechnung!A13+1,FALSE) -> < bitte wählen > | G15: =(Rationsberechnung!B13/100)*$G$23 -> 0
B16: =HLOOKUP(Futterwertabelle!A$2,Futterwertabelle!A$2:A$126,Rationsberechnung!A14+1,FALSE) -> < bitte wählen > | C16: =(Rationsberechnung!B14/100)*$C$23 -> 0 | F16: =HLOOKUP(Futterwertabelle!A$2,Futterwertabelle!A$2:A$126,Rationsberechnung!A14+1,FALSE) -> < bitte wählen > | G16: =(Rationsberechnung!B14/100)*$G$23 -> 0
B17: =HLOOKUP(Futterwertabelle!A$2,Futterwertabelle!A$2:A$126,Rationsberechnung!A15+1,FALSE) -> < bitte wählen > | C17: =(Rationsberechnung!B15/100)*$C$23 -> 0 | F17: =HLOOKUP(Futterwertabelle!A$2,Futterwertabelle!A$2:A$126,Rationsberechnung!A15+1,FALSE) -> < bitte wählen > | G17: =(Rationsberechnung!B15/100)*$G$23 -> 0
B18: =HLOOKUP(Futterwertabelle!A$2,Futterwertabelle!A$2:A$126,Rationsberechnung!A16+1,FALSE) -> < bitte wählen > | C18: =(Rationsberechnung!B16/100)*$C$23 -> 0 | F18: =HLOOKUP(Futterwertabelle!A$2,Futterwertabelle!A$2:A$126,Rationsberechnung!A16+1,FALSE) -> < bitte wählen > | G18: =(Rationsberechnung!B16/100)*$G$23 -> 0
B19: =HLOOKUP(Futterwertabelle!A$2,Futterwertabelle!A$2:A$126,Rationsberechnung!A17+1,FALSE) -> < bitte wählen > | C19: =(Rationsberechnung!B17/100)*$C$23 -> 0 | F19: =HLOOKUP(Futterwertabelle!A$2,Futterwertabelle!A$2:A$126,Rationsberechnung!A17+1,FALSE) -> < bitte wählen > | G19: =(Rationsberechnung!B17/100)*$G$23 -> 0
B20: =HLOOKUP(Futterwertabelle!A$2,Futterwertabelle!A$2:A$126,Rationsberechnung!A18+1,FALSE) -> < bitte wählen > | C20: =(Rationsberechnung!B18/100)*$C$23 -> 1.953124971e-05 | F20: =HLOOKUP(Futterwertabelle!A$2,Futterwertabelle!A$2:A$126,Rationsberechnung!A18+1,FALSE) -> < bitte wählen > | G20: =(Rationsberechnung!B18/100)*$G$23 -> 2.441406214e-05
B21: =HLOOKUP(Futterwertabelle!A$2,Futterwertabelle!A$2:A$126,Rationsberechnung!A19+1,FALSE) -> < bitte wählen > | C21: =(Rationsberechnung!B19/100)*$C$23 -> 0 | F21: =HLOOKUP(Futterwertabelle!A$2,Futterwertabelle!A$2:A$126,Rationsberechnung!A19+1,FALSE) -> < bitte wählen > | G21: =(Rationsberechnung!B19/100)*$G$23 -> 0
B22: =HLOOKUP(Futterwertabelle!A$2,Futterwertabelle!A$2:A$126,Rationsberechnung!A20+1,FALSE) -> < bitte wählen > | C22: =(Rationsberechnung!B20/100)*$C$23 -> 0.01589794069 | F22: =HLOOKUP(Futterwertabelle!A$2,Futterwertabelle!A$2:A$126,Rationsberechnung!A20+1,FALSE) -> < bitte wählen > | G22: =(Rationsberechnung!B20/100)*$C$23 -> 0.01589794069
B23: Zielmenge | C23: 40 | F23: Zielmenge | G23: 50
B25: Energie: | C25: =Rationsberechnung!L4 ->  | F25: Energie: | G25: =Rationsberechnung!L4 -> 
B26: Rohasche | C26: =Rationsberechnung!L5 ->  | F26: Rohasche | G26: =Rationsberechnung!L5 -> 
B27: Rohprotein: | C27: =Rationsberechnung!L6 ->  | F27: Rohprotein: | G27: =Rationsberechnung!L6 -> 
B28: Methionin: | C28: =Rationsberechnung!L12 ->  | F28: Methionin: | G28: =Rationsberechnung!L12 -> 
B29: Rohfett: | C29: =Rationsberechnung!L7 ->  | F29: Rohfett: | G29: =Rationsberechnung!L7 -> 
B30: Rohfaser: | C30: =Rationsberechnung!L8 ->  | F30: Rohfaser: | G30: =Rationsberechnung!L8 -> 
B31: Calcium: | C31: =Rationsberechnung!L9 ->  | F31: Calcium: | G31: =Rationsberechnung!L9 -> 
B32: Phosphor: | C32: =Rationsberechnung!L10 ->  | F32: Phosphor: | G32: =Rationsberechnung!L10 -> 
B33: Natrium: | C33: =Rationsberechnung!L11 ->  | F33: Natrium: | G33: =Rationsberechnung!L11 -> 
B34: Vitamin A: | C34: =Rationsberechnung!L17 ->  | F34: Vitamin A: | G34: =Rationsberechnung!L17 -> 
B35: Vitamin D3: | C35: =Rationsberechnung!L18 ->  | F35: Vitamin D3: | G35: =Rationsberechnung!L18 -> 
B36: Vitamin E: | C36: =Rationsberechnung!L19 ->  | F36: Vitamin E: | G36: =Rationsberechnung!L19 -> 
